{"text_format":"1","workbook":"xlsx","n_sheets":21,"sheets":["SSM plan 2025","C-bågar SSM plan 2025","SSM plan 2024","C-bågar SSM plan 2024","SSM plan 2023","C-bågar SSM plan 2023","SSM plan 2022","C-bågar SSM plan 2022","SSM plan 2021 (ny version)","SSM Plan 2021","FU Plan 2020","SSM Plan 2019","SSM Plan 2018","SSM Plan 2017","SSM Plan 2016","FU Ryhov 2016","FU_SSM plan 2014 länsöversikt","FU_SSM plan 2013 länsöversikt","FU Höglandet","SSM Plan 2015","Övrig info"],"not_rendered":{"charts":0,"images":0,"macros":1,"external_links":1,"defined_names":0,"comments":8,"pivot_tables":0},"unopened":[],"bounds":{"document_bytes":16777216,"sheet_cells":100000,"rows_first":2000,"rows_last":500,"rows_between":2000,"halvings":0,"cell_chars":16384,"cell_head_chars":4096},"cells_cut":0,"cells_raw":0,"read":"whole","date_system":"1900"}

{"sheet":"SSM plan 2025","index":0,"n_rows":70,"n_cols":13,"rows_kept":70,"cut":false,"hidden":false,"merged":[]}
[null,null,null,null,"2025-04-11","Ebba",null,null,null,null,"Totalt antal labb","Antal bokade kontroller","Antal utförda kontroller"]
[null,"Modalitet","Kontroll bokad, datum","Bokad av","Vem ska göra kontrollen?",null,"Kontroll utförd, datum","Utförd av","Kommentar",null,37,22,3]
["Ryhov",null,"åååå-mm-dd",null,null,"Ryhov",null,null,null,null,"ej inkl mammografi labb"]
["Labb 1","Hybridsal",null,"TV",null,"Labb 1",null,null,null,null,null,"Bokade","Utförda"]
[null,null,null,null,null,null,null,null,null,null,"TV",5,0]
["Labb 2","Konv. Rtg","2025-10-01","EH","TV","Labb 2",null,null,null,null,"EH",19,3]
["Labb 3","Konv. Rtg","2025-09-02","EH","EH","Labb 3",null,null,null,null,"GH",12,1]
["Labb 4","Konv. Rtg","2025-09-18","EH","TV","Labb 4"]
["Atollen","Konv. Rtg","2025-07-10","EH","EH","Atollen"]
[]
["Labb 5","Multilabb","2025-05-09","EH","EH/GH","Labb 5"]
[]
["RYH SFT 206126","Mobil rtg",null,null,"EH","RYH SFT 206126"]
["RYH SFT 206127","Mobil rtg",null,null,"EH","RYH SFT 206127"]
["SOFT Ryhov 204265","Mobil rtg",null,null,"EH","SOFT Ryhov"]
[]
[]
["Labb 11","CT","2025-06-26","EH","TV","Labb 11"]
["Labb 12","CT","2025-06-27","EH","TV","Labb 12"]
["Labb13","CT","2025-08-14","EH","GH","Labb13"]
["Labb 14","CT","2025-08-07","EH","TV","Labb 14"]
[]
["Labb 15","Intervention",null,"TV",null,"Labb 15"]
["Labb 16","Intervention",null,"TV",null,"Labb 16"]
["Labb 17","Intervention",null,"TV",null,"Labb 17"]
[]
["Labb 63","Mammografi",null,null,"SSM-kontroll på Mammografi utrsutning skall inte utföras 2025","Labb 63",null,null,"SSM-kontroll på Mammografi utrsutning skall inte utföras 2025"]
["Labb 64","Mammografi",null,null,"SSM-kontroll på Mammografi utrsutning skall inte utföras 2025","Labb 64",null,null,"SSM-kontroll på Mammografi utrsutning skall inte utföras 2025"]
["Labb 65","Mammografi",null,null,"SSM-kontroll på Mammografi utrsutning skall inte utföras 2025","Labb 65",null,null,"SSM-kontroll på Mammografi utrsutning skall inte utföras 2025"]
["Labb 67","Mammografi",null,null,"SSM-kontroll på Mammografi utrsutning skall inte utföras 2025","Labb 67",null,null,"SSM-kontroll på Mammografi utrsutning skall inte utföras 2025"]
[]
["Värnamo",null,null,null,null,"Värnamo"]
["Labb 4","Konv. Rtg","2025-04-16","EH","EH/GH","Labb 4"]
["Labb 5","Konv. Rtg","2025-04-17","EH","GH","Labb 5"]
[]
["Labb 8","Multilabb","2025-06-12","EH","EH","Labb 8"]
[]
["Vmo SFT 403987","Mobil rtg",null,"EH","GH","Vmo SFT 403987"]
["SOFT VMO","Mobil rtg",null,"EH","GH","SOFT VMO"]
[]
[]
["Labb 11","CT","2025-07-08","EH","GH","Labb 11"]
["Labb12","CT","2025-07-17","EH","GH","Labb12"]
[]
["Labb 10","Mammografi",null,null,"SSM-kontroll på Mammografi utrsutning skall inte utföras 2025","Labb 10",null,null,"SSM-kontroll på Mammografi utrsutning skall inte utföras 2025"]
["Höglandet",null,null,null,null,"Höglandet"]
["Labb 1","Konv. Rtg","2025-03-27","EH","EH","Labb 1","2025-03-27","EH","Syns en ljus och en mörk fläck på detektorn vid kontoll av homogentitet, ok med verksamheten"]
["Labb 6","Konv. Rtg","2025-04-10","EH","EH/GH","Labb 6","2025-04-10","EH","Godkänd"]
["Labb 31 (vetlanda)","Konv. Rtg","2025-08-19","EH","EH","Labb 31 (vetlanda)"]
[]
["Labb 42 (tranås)","Konv. Rtg","2025-11-05","EH","EH","Labb 42 (tranås)"]
[]
[]
["Labb 3","Multilabb","2025-05-13","EH","EH/GH","Labb 3"]
[]
["Eks SFT 605170","Mobil rtg",null,"EH","EH","Eks SFT 605170"]
["Eks SFT 605171","Mobil rtg",null,"EH","EH","Eks SFT 605171"]
[]
[]
["Labb 4","CT","2025-07-03","EH","EH","Labb 4"]
["Labb 5","CT","2025-05-22","EH","EH/GH","Labb 5"]
["CT Nässjö (labb 26)","CT","2025-04-01","EH","EH/GH","CT Nässjö (labb 26)","2025-04-01","EH/GH","Godkänd"]
[]
["Mammo vagn","Mammografi",null,null,"SSM-kontroll på Mammografi utrsutning skall inte utföras 2025","Mammo vagn",null,null,"SSM-kontroll på Mammografi utrsutning skall inte utföras 2025"]
["SOFT Bil",null,null,null,null,"SOFT Bil"]
["SOFT Bil","Mobil rtg",null,"EH","EH","SOFT Bil"]
["DXA",null,null,null,null,"DXA"]
["DXA Jönköping","Bentäthet",null,"EH",null,"DXA Jönköping"]
["DXA Eksjö","Bentäthet",null,"EH",null,"DXA Eksjö"]
["DXA Värnamo","Bentäthet",null,"EH",null,"DXA Värnamo"]

{"sheet":"C-bågar SSM plan 2025","index":1,"n_rows":48,"n_cols":13,"rows_kept":48,"cut":false,"hidden":false,"merged":[]}
[null,null,null,null,"2025-04-09","Ebba",null,null,null,null,"Totalt antal labb","Antal bokade kontroller","Antal utförda kontroller"]
[null,"Modalitet","Kontroll bokad, datum","Bokad av","Vem ska göra kontrollen?",null,"Kontroll utförd, datum","Utförd av","Kommentar",null,32,8,8]
["Ryhov",null,"åååå-mm-dd",null,null,"Ryhov"]
["Biplan J1","G-båge",null,null,null,{"$f":"A4","v":"Biplan J1"},null,null,null,null,null,"Bokade","Utförda"]
["Biplan J2","G-båge",null,null,null,{"$f":"A5","v":"Biplan J2"},null,null,null,null,"TV",0,0]
[null,null,null,null,null,null,null,null,null,null,"EH",7,7]
["Dagkir","C-båge",null,null,null,{"$f":"A7","v":"Dagkir"},null,null,null,null,"GH",0,0]
["ESWT","Ziehm C-båge","Avvecklad 2025-01-21",null,null,"ESWT","Avvecklad 2025-01-21"]
["Kir A","C-båge",null,null,null,"Kir A"]
["Kir B","C-båge",null,null,null,"Kir B"]
["Kir C","C-båge",null,null,null,"Kir C"]
["Ort 1","C-båge",null,null,null,"Ort 1"]
["Ort 2","C-båge",null,null,null,"Ort 2"]
["Smärt","C-båge",null,null,null,"Smärt"]
["KBC 1","C-båge",null,null,null,{"$f":"A15","v":"KBC 1"}]
["Pace","C-båge",null,null,null,{"$f":"A16","v":"Pace"},null,null,"Flyttad in till OP 2025-01-20"]
["Pace motoriserad","C-båge","2025-01-17","AP/EH","AP/EH",{"$f":"A17","v":"Pace motoriserad"},"2025-01-17","AP/EH","Leveranskontroll - Godkänd"]
[]
["Mini c-båge","Mini c-båge",null,null,null,{"$f":"A19","v":"Mini c-båge"}]
[]
["Värnamo",null,null,null,null,"Värnamo"]
["Biplan V","G-båge",null,null,null,{"$f":"A22","v":"Biplan V"}]
[]
["Op 5","C-båge",null,null,null,{"$f":"A24","v":"Op 5"}]
[" Op 6","C-båge",null,null,null,{"$f":"A25","v":" Op 6"}]
["Op 7","C-båge",null,null,null,{"$f":"A26","v":"Op 7"}]
["Op 8","C-båge",null,null,null,{"$f":"A27","v":"Op 8"}]
[]
["Mini c-båge","Mini c-båge",null,null,null,{"$f":"A29","v":"Mini c-båge"}]
[]
["ESVL","Stortz fast utr",null,null,null,{"$f":"A31","v":"ESVL"}]
[]
["Höglandet",null,null,null,null,"Höglandet"]
["Biplan E","G-båge",null,null,null,{"$f":"A34","v":"Biplan E"}]
[]
["US 2","C-båge",null,null,null,{"$f":"A36","v":"US 2"},null,null,"Ska ev flyttas till Jönköping"]
["US 4","C-båge",null,null,null,{"$f":"A37","v":"US 4"},null,null,"Ska ev flyttas till Jönköping"]
["Endo 5","C-båge","2025-02-03","AP/EH","AP/EH",{"$f":"A38","v":"Endo 5"},"2025-02-03","AP/EH","Leveranskontroll - Godkänd"]
["Endo 6","C-båge","2025-02-24","EH","EH",{"$f":"A39","v":"Endo 6"},"2025-02-24","EH","Leveranskontroll - Godkänd"]
[]
["OP 1","C-båge","2025-02-03.","AP/EH","AP/EH",{"$f":"A41","v":"OP 1"},"2025-02-03.","AP/EH","Leveranskontroll - Godkänd"]
["OP 2","C-båge","2025-02-04","AP/EH","AP/EH",{"$f":"A42","v":"OP 2"},"2025-02-04","AP/EH","Leveranskontroll - Godkänd"]
["OP 3","C-båge","2025-02-05","AP/EH","EH",{"$f":"A43","v":"OP 3"},"2025-02-05","EH","Leveranskontroll - Godkänd"]
["OP 4","C-båge","2024-02-04.","AP/EH","AP/EH",{"$f":"A44","v":"OP 4"},"2024-02-04.","AP/EH","Leveranskontroll - Godkänd"]
[]
["Mini c-båge","Mini c-båge",null,null,null,{"$f":"A46","v":"Mini c-båge"}]
[]
["Smärtenheten","C-båge",null,null,null,"C-båge"]

{"sheet":"SSM plan 2024","index":2,"n_rows":68,"n_cols":13,"rows_kept":68,"cut":false,"hidden":false,"merged":[]}
[null,null,null,null,"2024-12-20","Amanda",null,null,null,null,"Totalt antal labb","Antal bokade kontroller","Antal utförda kontroller"]
[null,"Modalitet","Kontroll bokad, datum","Bokad av","Vem ska göra kontrollen?",null,"Kontroll utförd, datum","Utförd av","Kommentar",null,43,43,43]
["Ryhov",null,"åååå-mm-dd",null,null,"Ryhov"]
["Labb 1","Hybridsal","2024-04-05","TV","AP","Labb 1","2024-04-05","AP","Kontroll FM. Godkänd"]
[]
["Labb 2","Konv. Rtg","2024-10-17","EH","EH","Labb 2","2024-10-17","EH","Godkänd"]
["Labb 3","Konv. Rtg","2024-09-12","EH","TV","Labb 3","2024-09-12","TV","Godkänd"]
["Labb 4","Konv. Rtg","2024-05-08","EH","EH","Labb 4","2024-05-08","EH","Godkänd"]
["Atollen","Konv. Rtg","2024-05-29","EH","EH","Atollen","2024-05-29","EH","Godkänd"]
[]
["Labb 5","Multilabb","2024-05-21","EH","TV","Labb 5","2024-05-21","TV","Byte av trasig reglerade Cu-filterenhet under våren. Godkänd"]
[]
["RYH SFT 206126","Mobil rtg","2024-11-29","EH","EH","RYH SFT 206126","2024-12-05","EH","Godkänd"]
["RYH SFT 206127","Mobil rtg","2024-01-19","EH","EH","RYH SFT 206127","2024-01-19","EH","Leveranskontroll-ok"]
["SOFT Ryhov 204265","Mobil rtg","2024-11-29,","EH","EH","SOFT Ryhov","2024-12-05","EH","Godkänd"]
[]
["Labb 11","CT","2024-06-28","TT","TT","Labb 11","2024-06-28","TT","Godkänd"]
["Labb 12","CT","2024-07-10","EH","TV","Labb 12","2024-07-10","TV","Saknas fortfarande info. Om kV/mAs för B-rör i dosrapport i PACS sedan uppgradering från VB20 till VB30. Ingen lösning för till tillfälle, enligt Siemens. Övrigt godkänd."]
["Labb13","CT","2024-07-18","EH","EH","Labb13","2024-07-18","EH","Godkänd"]
["Labb 14","CT","2024-04-18","EH","EH/TV","Labb 14","2024-04-18","EH/TV","Levernskontroll, godkänd"]
[]
["Labb 15","Intervention","2024-10-25","TV","AP/EH","Labb 15","2024-10-25","AP","Godkänd"]
["Labb 16","Intervention","2024-06-14","TV","TV/EH","Labb 16","2024-06-14","TV/EH","GODKÄND"]
["Labb 17","Intervention","2424-12-20","TV","AP/EH","Labb 17","2024-12-20","AP/EH","Godkänd"]
[]
["Labb 63","Mammografi","välj under v. 26-30,","TV","TV","Labb 63","2024-07-17","TV","GODKÄND"]
["Labb 64","Mammografi","välj under v. 26-30,,","TV","EH","Labb 64","2024-07-26","EH","kV vid Tomo har drivit något, skall åtgärdas av fuji. Annars godkänd. Dubbelkontroller av Fuji 31/7och Tanny 1/8 (Med annan mätare raysafe x2)- Alla kV Tomo ligger inom toleranser. Ingen åtgärd krävs. Dosestat QC  veckokontroll godkänd."]
["Labb 65","Mammografi","välj under v. 26-30","TV","TT","Labb 65","2024-07-04","TT","Godkänd"]
["Labb 67","Mammografi","välj under v. 26-30,,,","TV","AP","Labb 67","2024-07-04","AP","Godkänd"]
[]
["Värnamo",null,null,null,null,"Värnamo"]
["Labb 4","Konv. Rtg","2024-04-09","AP","AP","Labb 4","2024-04-09","AP","Godkänd"]
["Labb 5","Konv. Rtg","2024-04-10","AP","AP","Labb 5","2024-04-10","AP","Godkänd"]
[]
["Labb 8","Multilabb","2024-08-27","AP","AP","Labb 8","2024-08-27","AP","Godkänd"]
[]
["Vmo SFT 403987","Mobil rtg","2024-11-28","EH","EH","Vmo SFT 403987","2024-11-28","EH","Godkänd"]
["SOFT VMO","Mobil rtg","2024-07-30,","AP","AP","SOFT VMO","2024-07-30","AP","Godkänd (Ljusfält något ocentrerat - meddelat MT)"]
[]
["Labb 11","CT","2024-10-22","AP","AP","Labb 11","2024-10-22","AP","Godkänd"]
["Labb12","CT","2024-11-19","AP","AP","Labb12","2024-11-19","AP","Godkänd"]
[]
["Labb 10","Mammografi","2024-07-03","AP","AP","Labb 10","2024-07-03","AP","Godkänd"]
["Höglandet",null,null,null,null,"Höglandet"]
["Labb 1","Konv. Rtg","2024-04-11","EH","EH","Labb 1","2024-04-11","EH","Godkänd"]
["Labb 6","Konv. Rtg","2024-02-09","EH","EH","Labb 6","2024-02-09","EH","Godkänd"]
["Labb 31 (vetlanda)","Konv. Rtg","2024-08-27","EH","EH","Labb 31 (vetlanda)","2024-08-27","EH","Godkänd"]
[]
["Labb 42 (tranås)","Konv. Rtg","2024-11-22","EH","EH","Labb 42 (tranås)","2024-11-22","EH","Godkänd"]
[]
[]
["Labb 3","Multilabb","2024-05-16","EH","EH","Labb 3","2024-05-16","EH","Godkänd"]
[]
["Eks SFT 605170","Mobil rtg","2024-11-14","EH","EH","Eks SFT 605170","2024-11-29","EH","Godkänd"]
["Eks SFT 605171","Mobil rtg","2024-11-08","EH","EH","Eks SFT 605171","2024-11-14","EH","Delvis Godkänd. AEC ej godkänd, detektor skickad för reperation"]
[]
[]
["Labb 4","CT","2024-06-04","EH","EH","Labb 4","2024-06-04","EH","Dosen har ökat något från leveranskontrollen, fortfarande inom tolerans men bör övervakas så det inte höjs mer."]
["Labb 5","CT","2024-03-12","EH","EH","Labb 5","2024-03-12","EH","Dosen har ökat något från leveranskontrollen, fortfarande inom tolerans men bör övervakas så det inte höjs mer."]
["CT Nässjö (labb 26)","CT","2024-01-30","EH","EH","CT Nässjö (labb 26)","2024-01-30","EH","Godkänd"]
[]
["Mammo vagn","Mammografi","2024-08-01","TV","EH","Mammo vagn","2024-08-01","EH","Godkänd. Bytt detektor 30/7- Dosestat QC ok/TV"]
["SOFT Bil",null,null,null,null,"SOFT Bil"]
["SOFT Bil","Mobil rtg","2024-07-30","AP","AP","SOFT Bil","2024-07-30","AP","Godkänd"]
["DXA",null,null,null,null,"DXA"]
["DXA Jönköping","Bentäthet","2024-05-27","PH","PH/EH","DXA Jönköping","2024-05-27","PH/EH","Godkänd"]
["DXA Eksjö","Bentäthet","2024-11-14","EH","EH","DXA Eksjö","2024-11-14","EH","Godkänd"]
["DXA Värnamo","Bentäthet","2024-11-28","EH","EH","DXA Värnamo","2024-11-28","EH","Godkänd"]

{"sheet":"C-bågar SSM plan 2024","index":3,"n_rows":44,"n_cols":13,"rows_kept":44,"cut":false,"hidden":false,"merged":[]}
[null,null,null,null,"2024-12-18","Ebba",null,null,null,null,"Totalt antal labb","Antal bokade kontroller","Antal utförda kontroller"]
[null,"Modalitet","Kontroll bokad, datum","Bokad av","Vem ska göra kontrollen?",null,"Kontroll utförd, datum","Utförd av","Kommentar",null,28,28,28]
["Ryhov",null,"åååå-mm-dd",null,null,"Ryhov"]
["Biplan J1","G-båge","2024-10-09","AP","AP",{"$f":"A4","v":"Biplan J1"},"2024-10-09","AP","Godkänd, DAP justerad på blått rör"]
["Biplan J2","G-båge","2024-08-01","AP","AP",{"$f":"A5","v":"Biplan J2"},"2024-08-01","AP","Godkänd"]
[]
["Dagkir","C-båge","2024-06-26","AP","AP",{"$f":"A7","v":"Dagkir"},"2024-06-26","AP","Godkänd"]
["ESWT","Ziehm C-båge","SSM kontroll ej 2024","AP","SSM kontroll 2024 utförs ej då utrustningen skall bytas ut under 2025","ESWT","SSM kontroll ej 2024","AP","SSM kontroll 2024 utförs ej då utrustningen skall bytas ut under 2025"]
["Kir A","C-båge","2024-06-25,","AP","AP","Kir A","2024-06-25","AP","Godkänd"]
["Kir B","C-båge","2024-06-25..","AP","AP","Kir B","2024-06-25","AP","Godkänd"]
["Kir C","C-båge","2024-06-25-","AP","AP","Kir C","2024-06-25","AP","Godkänd"]
["Ort 1","C-båge","2024-06-26,","AP","AP","Ort 1","2024-06-26","AP","Godkänd"]
["Ort 2","C-båge","2024-06-26.","AP","AP","Ort 2","2024-06-26","AP","Godkänd"]
["Smärt","C-båge","2024-04-17","AP","AP","Smärt","2024-04-17","AP","Leveranskontroll, Leasad av Mediel. "]
["KBC 1","C-båge","2024-02-19","AP","AP",{"$f":"A15","v":"KBC 1"},"2024-02-19","AP","Godkänd"]
["Pace","C-båge","2024-06-25","AP","AP",{"$f":"A16","v":"Pace"},"2024-06-25","AP","Godkänd"]
[]
["Mini c-båge","Mini c-båge","2024-12-18","AP","AP",{"$f":"A18","v":"Mini c-båge"},"2024-12-18","AP/EH","Godkänd"]
[]
["Värnamo",null,null,null,null,"Värnamo"]
["Biplan V","G-båge","2024-12-03.","AP","AP",{"$f":"A21","v":"Biplan V"},"2024-12-03","AP","Godkänd (var strax utanför tolerans vid höga kV)"]
[]
["Op 5","C-båge","2024-08-06,","AP","AP",{"$f":"A23","v":"Op 5"},"2024-08-06","AP","Godkänd"]
[" Op 6","C-båge","2024-12-03","AP","AP",{"$f":"A24","v":" Op 6"},"2024-12-03","AP","Godkänd"]
["Op 7","C-båge","2024-08-06.","AP","AP",{"$f":"A25","v":"Op 7"},"2024-08-06","AP","Godkänd"]
["Op 8","C-båge","2024-08-06","AP","AP",{"$f":"A26","v":"Op 8"},"2024-08-06","AP","Godkänd"]
[]
["Mini c-båge","Mini c-båge","2024-05-21","AP","AP",{"$f":"A28","v":"Mini c-båge"},"2024-05-21","AP","Godkänd, kV vid 15 pps avvek. Generator bytt 240920. Godkänd 241002 efter korrigering av dos. "]
[]
["ESVL","Stortz fast utr","2024-09-04","AP","AP",{"$f":"A30","v":"ESVL"},"2024-09-04","AP","Godkänd"]
[]
["Höglandet",null,null,null,null,"Höglandet"]
["Biplan E","G-båge","2024-12-17,","EH","EH",{"$f":"A33","v":"Biplan E"},"2024-12-17","EH","Godkänd"]
[]
["US 2","C-båge","2024-07-24","EH","EH",{"$f":"A35","v":"US 2"},"2024-07-24","EH","Godkänd"]
["US 4","C-båge","2024-07-24,","EH","EH",{"$f":"A36","v":"US 4"},"2024-07-24","EH","Godkänd"]
[]
["Op 6","C-båge","SSM kontroll ej 2024","EH","SSM kontroll 2024 utförs ej då utrustningen skall bytas ut under hösten",{"$f":"A38","v":"Op 6"},"SSM kontroll ej 2024","EH","SSM kontroll 2024 utförs ej då utrustningen skall bytas ut under hösten"]
["Op 7","C-båge","SSM kontroll ej 2024","EH","SSM kontroll 2024 utförs ej då utrustningen skall bytas ut under hösten",{"$f":"A39","v":"Op 7"},"SSM kontroll ej 2024","EH","SSM kontroll 2024 utförs ej då utrustningen skall bytas ut under hösten"]
["Op 8","C-båge","SSM kontroll ej 2024","EH","SSM kontroll 2024 utförs ej då utrustningen skall bytas ut under hösten",{"$f":"A40","v":"Op 8"},"SSM kontroll ej 2024","EH","SSM kontroll 2024 utförs ej då utrustningen skall bytas ut under hösten"]
[]
["Mini c-båge","Mini c-båge","2024-12-17","EH","EH",{"$f":"A42","v":"Mini c-båge"},"2024-12-17","EH","Allt godkänt förutom DAP. Detta var likadant 2023, för att åtgärda detta krävs det att det byter generatorn vilket inte görs då maskinen är för gammal. Har inte drivit sedan 2023 och den uppmätta dosen var också samma som 2023 alltså stabilt."]
[]
["Smärtenheten","C-båge","2024-12-04","EH","EH","C-båge","2024-11-29","EH","Godkänd"]

{"sheet":"SSM plan 2023","index":4,"n_rows":69,"n_cols":13,"rows_kept":69,"cut":false,"hidden":false,"merged":[]}
[null,null,null,null,"2024-01-31","Ebba",null,null,null,null,"Totalt antal labb","Antal bokade kontroller","Antal utförda kontroller"]
[null,"Modalitet","Kontroll bokad, datum","Bokad av","Vem ska göra kontrollen?",null,"Kontroll utförd, datum","Utförd av","Kommentar",null,43,38,36]
["Ryhov",null,"åååå-mm-dd",null,null,"Ryhov"]
["Labb 1","Hybridsal","2023-02-03","TV","AP/TV","Labb 1","2023-02-03 / 2023-06-02","AP/TV","Raster behöver ev bytas ut - ser rasterlinjer - utbytt 231201"]
[]
["Labb 2","Konv. Rtg","2023-07-19","EH","TV","Labb 2","2023-07-19","TV","Godkänd"]
["Labb 3","Konv. Rtg","2023-08-29","EH","TV","Labb 3","2023-08-29","TV"]
["Labb 4","Konv. Rtg","2023-09-06","EH","EH","Labb 4","2023-09-12","EH","Endast delvis kontrollerad pga av fel på mätutrustning"]
["Atollen","Konv. Rtg","2023-10-18","EH","EH","Atollen","2023-10-18","EH","Godkänd"]
[]
["Labb 5","Multilabb","2023-06-08","EH","AP/TV","Labb 5","2023-06-08","AP/TV","Godkänd"]
[]
["Movix NIVA","Mobil rtg",null,"EH","Skall kasseras tidig 2024 så ingen SSM kontroll 2023","Movix NIVA",null,null,"Skall kasseras tidig 2024 så ingen SSM kontroll 2023"]
["Movix IVA","Mobil rtg",null,"EH","Skall kasseras tidig 2024 så ingen SSM kontroll 2023","Movix IVA",null,null,"Skall kasseras tidig 2024 så ingen SSM kontroll 2023"]
["SOFT Ryhov","Mobil rtg","2023-12-18","EH","EH","SOFT Ryhov",null,null,"Gick ej att uföra då maskinen slutade att fungera, problemet åtgärdat av MT"]
[]
["Labb 11","CT","2023-07-07","EH","TT","Labb 11","2023-07-07","TT"]
["Labb 12","CT","2023-07-06","EH","TV","Labb 12","2023-07-06","TV/Erik M","Godkänd"]
["Labb13","CT","2023-08-10","EH","EH/AP","Labb13","2023-08-10","EH/AP","Delvis godkänd, behöver komplettera CTDI mätning pga hade ej Raysafe"]
[]
["Labb 15","Intervention","2023-12-28","TV","TV","Labb 15","2023-12-28","TV","Finfokus gick sönder innan Jul. Röret kommer att bytas ut v.2 (2024).Kan köra under tiden.  Nytt raster under 2023, inga anmärkningar. "]
["Labb 16","Intervention","2023-08-11 & 2023-12-08","AP","TV/AP","Labb 16","2023-08-11 & 2023-12-08","TV/AP","Godkänd"]
["Labb 17","Intervention","2023-12-29","TV","TV/AP","Labb 17","2023-08-09 & 2023-12-29","TV","Mjukvarasystemet uppgraderats juni-juli 2023.  Rastereffekt värre än förra året. Dags att byta. Även felsatt skruv? i detektorhuset har skrapats på rastret."]
[]
["Labb 63","Mammografi","2023-07-26","TV","TV","Labb 63","2023-07-26","TV","Godkänd. Fuji har bytt detektor 2023-01-17. Ny bländarfunktion installerades 2022-11-23."]
["Labb 64","Mammografi","2023-08-23","EH","EH","Labb 64","2023-08-23","EH","Godkänd"]
["Labb 65","Mammografi","2023-06-28","TV","TV","Labb 65","2023-06-28","TV","Godkänd. Fuji har bytt detektor april 2023."]
["Labb 67","Mammografi","2023-07-03","EH","EH","Labb 67","2023-07-03","EH/TT","Godkänd"]
[]
["Värnamo",null,null,null,null,"Värnamo"]
["Labb 4","Konv. Rtg","2023-04-04","AP","Amanda","Labb 4","2023-04-04","AP","Godkänd"]
["Labb 5","Konv. Rtg","2023-04-05","AP","Amanda","Labb 5","2023-04-05","AP","Godkänd (density avvek något men godkänner ändå)"]
[]
["Labb 8","Multilabb","2023-09-12","AP","Amanda","Labb 8","2023-09-12","AP","Godkänd"]
[]
["Movix VMO","Mobil rtg",null,"AP","Skall kasseras tidig 2024 så ingen SSM kontroll 2023","Movix VMO",null,null,"Skall kasseras tidig 2024 så ingen SSM kontroll 2023"]
["SOFT VMO","Mobil rtg","2023-08-01.","AP","Amanda","SOFT VMO","2023-08-01","AP","Godkänd (lite avvikande ms)"]
[]
["Labb 11","CT","2023-10-19","AP","Leverans v.41, AP/HJ/EH","Labb 11","2023-10-19","AP/EH","Godkänd"]
["Labb12","CT","2023-11-24","AP","AP/TT","Labb12","2023-11-24","AP/TT","Godkänd"]
[]
["Labb 10","Mammografi","2023-06-20","AP","Amanda","Labb 10","2023-06-20","AP","Godkänd"]
["Höglandet",null,null,null,null,"Höglandet"]
["Labb 1","Konv. Rtg","2023-11-30","EH","Ebba","Labb 1","2023-11-30","EH","Godkänd"]
["Labb 6","Konv. Rtg","2023-05-03","EH","Ebba","Labb 6","2023-05-03","EH","Godkänd"]
["Labb 31 (vetlanda)","Konv. Rtg","2023-08-15","EH","Ebba","Labb 31 (vetlanda)","2023-08-15","EH","Godkänd"]
[]
["Labb 42 (tranås)","Konv. Rtg","2023-11-08","EH","Ebba","Labb 42 (tranås)","2023-11-08","EH","Godkänd"]
[]
[]
["Labb 3","Multilabb","2023-05-23","EH","Ebba","Labb 3","2023-05-23","EH/AP","Godkänd, Rasterlinjer synliga"]
[]
["Movix 1","Mobil rtg",null,"EH","Skall kasseras tidig 2024 så ingen SSM kontroll 2023","Movix 1",null,null,"Skall kasseras tidig 2024 så ingen SSM kontroll 2023"]
["Movix 2","Mobil rtg",null,"EH","Skall kasseras tidig 2024 så ingen SSM kontroll 2023","Movix 2",null,null,"Skall kasseras tidig 2024 så ingen SSM kontroll 2023"]
["SOFT Bil","Mobil rtg","2023-08-01","AP","Amanda","SOFT Bil","2023-08-01","AP","Godkänd (ger ifrån sig ett högt ljud vid exponering)"]
[]
["Labb 4","CT","2023-05-25","EH","Leveransmätning","Labb 4","2023-05-26","Ebba/Hans","Ingen anmärkning vid leverans"]
["Labb 5","CT","2023-03-09","EH","Leveransmätning","Labb 5","2023-03-09","Ebba/Hans","Ingen anmärkning vid leverans"]
["CT Nässjö (labb 26)","CT","2023-01-20","EH","Ebba/Hans","CT Nässjö (labb 26)","2023-01-20","Ebba/Hans","Godkänd"]
[]
["Mammo vagn","Mammografi","Vagnen är ledig och fritt fram att boka kontroll v. 27-31","EH","EH/TV","Mammo vagn","2023-08-04","EH/TV","Godkänd"]
[]
[]
[]
["Nyleverans SOFT",null,null,null,null,"Nyleverans SOFT"]
["Eks SFT 605170","Konv. Rtg","2023-10-10","EH","Ebba","Eks SFT 605170","2023-10-10","EH","Godkänd"]
["Eks SFT 605171","Konv. Rtg","2023-10-10.","EH","Ebba","Eks SFT 605171","2023-10-10","EH","Godkänd"]
["Vmo SFT 403987","Konv. Rtg","2023-11-06","EH","Ebba","Vmo SFT 403987","2023-11-06","EH","Godkänd"]
["RYH SFT","Konv. Rtg","2023-11-27","EH","Ebba","RYH SFT"]

{"sheet":"C-bågar SSM plan 2023","index":5,"n_rows":44,"n_cols":13,"rows_kept":44,"cut":false,"hidden":false,"merged":[]}
[null,null,null,null,"2024-01-15","Ebba",null,null,null,null,"Totalt antal labb","Antal bokade kontroller","Antal utförda kontroller"]
[null,"Modalitet","Kontroll bokad, datum","Bokad av","Vem ska göra kontrollen?",null,"Kontroll utförd, datum","Utförd av","Kommentar",null,27,27,27]
["Ryhov",null,"åååå-mm-dd",null,null,"Ryhov"]
["Biplan J1","G-båge","2023-11-02.","AP","AP/EH",{"$f":"A4","v":"Biplan J1"},"2023-11-02","AP/EH","Blå kåpa sprucken"]
["Biplan J2","G-båge","2023-11-02","AP","AP/EH",{"$f":"A5","v":"Biplan J2"},"2023-11-02","AP/EH","Byte av blå kåpa - TF sänkt"]
[]
["Dagkir","C-båge","2023-06-27.","AP","AP",{"$f":"A7","v":"Dagkir"},"2023-06-27","AP","Godkänd (kV något låg vid 50 kV)"]
["ESWT","Ziehm C-båge","2023-12-28","AP","AP","ESWT","2023-12-28","AP","Godkänd"]
["Kir A","C-båge","2023-06-27","AP","AP","Kir A","2023-06-27","AP","Godkänd "]
["Kir B","C-båge","2023-06-14","AP","AP","Kir B","2023-06-14","AP","Godkänd (kV behöver justeras lite)"]
["Kir C","C-båge","2023-06-14,","AP","AP","Kir C","2023-06-14","AP","Godkänd"]
["Ort 1","C-båge","2023-06-15","AP","AP","Ort 1","2023-06-15","AP","Godkänd"]
["Ort 2","C-båge","2023-06-14.","AP","AP","Ort 2","2023-06-14","AP","Godkänd"]
[]
["KBC 1","C-båge","2023-02-15","AP","AP",{"$f":"A15","v":"KBC 1"},"2023-02-15","AP","Godkänd"]
["Pace","C-båge","2023-06-28","AP","AP",{"$f":"A16","v":"Pace"},"2023-06-28","AP","Godkänd "]
[]
["Mini c-båge","Mini c-båge","2023-12-21","AP","AP",{"$f":"A18","v":"Mini c-båge"},"2023-12-21","AP","Godkänd"]
[]
["Värnamo",null,null,null,null,"Värnamo"]
["Biplan V","G-båge","2023-12-05.","AP","AP/EH",{"$f":"A21","v":"Biplan V"},"2023-12-05","AP/EH","Godkänd, men avviker något i dosrat - MT ska kontaktas"]
[]
["Op 5","C-båge","2023-12-05","AP","AP/EH",{"$f":"A23","v":"Op 5"},"2023-12-05","AP/EH","Godkänd"]
[" Op 6","C-båge","2023-07-27","AP","AP",{"$f":"A24","v":" Op 6"},"2023-07-27","AP","Godkänd - ev något hög dos"]
["Op 7","C-båge","2023-07-27,","AP","AP",{"$f":"A25","v":"Op 7"},"2023-07-27","AP","Godkänd"]
["Op 8","C-båge","2023-07-27.","AP","AP",{"$f":"A26","v":"Op 8"},"2023-07-27","AP","Godkänd"]
[]
["Mini c-båge","Mini c-båge","2023-05-17","AP","AP",{"$f":"A28","v":"Mini c-båge"},"2023-05-17","AP","Godkänd"]
[]
["ESVL","Stortz fast utr","2023-09-04","AP","AP/TV",{"$f":"A30","v":"ESVL"},"2023-09-04","AP/TV","Godkänd - DAP kontrollerad med RADcal och då ok"]
[]
["Höglandet",null,null,null,null,"Höglandet"]
["Biplan E","G-båge","2023-12-20.","EH","AP/EH",{"$f":"A33","v":"Biplan E"},"2023-12-20","AP/EH","Godkänd"]
[]
["US 2","C-båge","2023-08-03","EH","EH",{"$f":"A35","v":"US 2"},"2023-06-29","EH","Godkänd, något lägre TF än innan"]
["US 4","C-båge","2023-06-21.","EH","EH",{"$f":"A36","v":"US 4"},"2023-06-21","EH/AP","Godkänd"]
[]
["Op 6","C-båge","2023-06-29","EH","EH",{"$f":"A38","v":"Op 6"},"2023-08-03","EH","Godkänd, monitorn suddig bild"]
["Op 7","C-båge","2023-06-29.","EH","EH",{"$f":"A39","v":"Op 7"},"2023-08-03","EH","Godkänd, monitorn suddig bild"]
["Op 8","C-båge","2023-08-03.","EH","EH",{"$f":"A40","v":"Op 8"},"2023-06-29","EH","Godkänd"]
[]
["Mini c-båge","Mini c-båge","2023-12-20,","EH","AP/EH",{"$f":"A42","v":"Mini c-båge"},"2023-12-20","AP/EH","Godkänd, DAP avviker fortsatt"]
[]
["Smärtenheten","C-båge","2023-06-21","EH","AP/EH","C-båge","2023-06-21","EH/AP","Godkänd"]

{"sheet":"SSM plan 2022","index":6,"n_rows":62,"n_cols":13,"rows_kept":62,"cut":false,"hidden":false,"merged":[]}
[null,null,null,null,"2023-01-02","Ebba",null,null,null,null,"Totalt antal labb","Antal bokade kontroller","Antal utförda kontroller"]
[null,"Modalitet","Kontroll bokad, datum","Bokad av","Vem ska göra kontrollen?",null,"Kontroll utförd, datum","Utförd av","Kommentar",null,42,39,39]
["Ryhov",null,"åååå-mm-dd",null,null,"Ryhov"]
["Labb 1","Hybridsal",null,null,"Ska uppgraderas jan 2023 så gör kontroll efter det.","Labb 1",null,null,"Ska uppgraderas jan 2023 så gör kontroll efter det."]
[]
["Labb 2","Konv. Rtg","2022-03-03","Ebba","Ebba/Tanny","Labb 2","2022-03-03","Ebba","Leveranskontroll"]
["Labb 3","Konv. Rtg","2022-12-29","Ebba","Ebba","Labb 3","2022-12-29","Ebba","Godkänd"]
["Labb 4","Konv. Rtg","2022-06-10","Tanny","Tanny/Amanda","Labb 4","2022-08-05","Amanda/Tanny","Godkänd"]
["Atollen","Konv. Rtg","2022-05-02","Tanny","Amanda","Atollen","2022-05-02","Amanda","Godkänd"]
[]
["Labb 5","Multilabb","2022-05-23","Tanny","Tanny","Labb 5","2022-05-23","Tanny","Godkänd"]
[]
["Movix NIVA","Mobil rtg","2022-12-21","ebba","Ebba","Movix NIVA","2022-12-22","Ebba","Godkänd"]
["Movix IVA","Mobil rtg","2022-12-21.","Ebba","Ebba","Movix IVA","2022-12-29","Ebba","Godkänd"]
["SOFT Ryhov","Mobil rtg","2022-12-28","Ebba","Ebba","SOFT Ryhov","2022-12-22","Ebba","Ljustfält/strålfält ej symetriskt krävs justering av MT. Maskinen är okej att använda. Annars godkänd"]
[]
["Labb 11","CT","2022-07-05","Hans","Hans/Türkan","Labb 11","2022-07-05","Hasse/Türkan","Start kl10"]
["Labb 12","CT","2022-08-11","Tanny","Tanny","Labb 12","2022-08-11","Tanny","Godkänd"]
["Labb13","CT","2022-07-26","Hans","Hans/Amanda","Labb13","2022-07-26","Hase/Amanda","Start kl 10"]
[]
["Labb 15","Intervention","2022-07-14","Tanny","Tanny/türkan","Labb 15","2022-07-14","Tanny"," rasterhuset är  trasigt"]
["Labb 16 Icono Ceiling","Intervention","2022-11-22",null,"Amanda/Tanny","Labb 16 (nya)","2022-11-22","Amanda/Tanny","Leveranskontroll, godkänd för provdrift, behöver komplettering v49"]
["Labb 16 Artis Zee","Intervention","2022-03-02","Tanny","Amanda/Tanny","Labb 16 (avinstallerat)","2022-03-06","Tanny","Labbet har bytas ut November 2022. Labbet upptagen med akut patient 2/3. Delkontroll under helgen."]
["Labb 17","Intervention","2022-07-17","Tanny","Tanny /Türkan","Labb 17","2022-07-28","Tanny/Türkan"]
[]
["Labb 63","Mammografi","2022-12-09","Amanda","Amanda/Tanny","Labb 63","2022-12-09","Amanda/Tanny","Godkänd"]
["Labb 64","Mammografi","2022-12-09.","Amanda","Amanda/Tanny","Labb 64","2022-12-09","Amanda/Tanny","Godkänd men hade något högre AGD"]
["Labb 65","Mammografi","2022-08-17",null,"Tanny/Amanda","Labb 65","2022-08-17","Tanny/Amanda","Godkänd"]
["Labb 67","Mammografi","2022-04-14'","Tanny","Türkan","Labb 67","2022-04-29","Türkan","Godkänd"]
[]
["Värnamo",null,null,null,null,"Värnamo"]
["Labb 4","Konv. Rtg","2022-04-13","Amanda","Amanda/Ebba","Labb 4","2022-04-14","Amanda","Godkänt, ska kontakta mediel för att sänka dos."]
["Labb 5","Konv. Rtg","2022-04-14","Amanda","Amanda","Labb 5","2022-04-13","Amanda/Ebba","Godkänt"]
[]
["Labb 8","Multilabb","2022-10-25","Amanda","Amanda/Ebba","Labb 8","2022-10-25","Ebba","Godkänt"]
[]
["Movix VMO","Mobil rtg","2022-07-22","Amanda","Amanda","Movix VMO","2022-07-22","Amanda","Godkänt"]
["SOFT VMO","Mobil rtg","2022-07-22.","Amanda","Amanda","SOFT VMO","2022-07-22","Amanda","Godkänt"]
[]
["Labb 11","CT","2022-09-21","Amanda","Canon: skippa i år?","Labb 11","2022-09-21","Amanda","Byt ut vT 2023, rörbyte 2022-09-20 och därefter utfördes mätningar men ej hel årlig kontroll. "]
["Labb12","CT","2022-11-17","Amanda","Leveranskontroll Amanda/Hans","Labb12","2022-11-17","Hans","Siemens - Leveranskontroll"]
[]
["Labb 10","Mammografi","2022-08-29","Amanda","Amanda/Tanny","Labb 10","2022-08-29",{"$f":"E43","v":"Amanda/Tanny"},"Godkänd, bytt detektor/kompressionsplatta i juli-augusti 2022. Några anmärkningar som kan åtgärdas vid nästa FU."]
["Höglandet",null,null,null,null,"Höglandet"]
["Labb 1","Konv. Rtg","2022-03-10","Ebba","Leveranskontroll Ebba/Amanda","Labb 1","2022-03-10","Ebba/Amanda","Leveranskontroll Ebba/Amanda"]
["Labb 6","Konv. Rtg","2022-10-05","Ebba",null,"Labb 6","2022-10-05","Ebba","Godkänd"]
["Labb 31 (vetlanda)","Konv. Rtg","2022-08-25",null,"potentiell nyinstallation 2022","Labb 31 (vetlanda)","2022-08-25","Ebba","Leveranskontroll Ebba"]
["Labb 41 (tranås)","Konv. Rtg","Avinstallerat jun-22",null,"Skall avinstalleras","Labb 41 (tranås)","Avinstallerat jun-22","2022-06-22","Avinstallerat jun-22"]
["Labb 42 (tranås)","Konv. Rtg","2022-12-15","Ebba","nyinstallation 2022","Labb 42 (tranås)","2022-12-15","Ebba/Amanda","Leveranskontroll Ebba/Amanda"]
[]
["Labb 2","GML labb","Avinstallerat mars-22","Ebba","Avinstallerat 2022","Labb 2","Avinstallerat mars-22",null,"Avinstallerat mars-22"]
["Labb 3","Multilabb","2022-03-11","Ebba","Leveranskontroll  Ebba/Türkan","Labb 3","2022-03-11","Ebba/Türkan","Leveranskontroll  Ebba/Türkan"]
[]
["Movix 1","Mobil rtg","2022-06-16","Ebba","Gör bägge movix på samma dag /Ebba","Movix 1","2022-06-28","Ebba","Godkänd"]
["Movix 2","Mobil rtg","2022-06-16.","Ebba","Ebba","Movix 2","2022-06-28","Ebba","Godkänd, men saknar skylt"]
["SOFT EKS","Mobil rtg","2022-06-28","Ebba","Ebba","SOFT EKS","2022-06-16","Ebba","Godkänd, men saknar skylt"]
[]
["Labb 4","CT",null,"Ebba","Kontroll utförs ej då byte sker under VT23","Labb 4",null,null,"Kontroll utförs ej då byte sker under VT23"]
["Labb 5","CT",null,"Ebba","Kontroll utförs ej då byte sker under VT23","Labb 5",null,null,"Kontroll utförs ej då byte sker under VT23"]
["CT Nässjö (labb 26)","CT","2022-01-05",null,"Nyinstallation, HJ, EH","CT Nässjö (labb 26)","2022-01-05","Hans/Ebba"]
[]
["Mammo vagn","Mammografi","2022-12-29'","Tanny","Tanny","Mammo vagn","2022-12-29","Tanny","Godkänd"]

{"sheet":"C-bågar SSM plan 2022","index":7,"n_rows":44,"n_cols":13,"rows_kept":44,"cut":false,"hidden":false,"merged":[]}
[null,null,null,null,"2023-01-04","Amanda",null,null,null,null,"Totalt antal labb","Antal bokade kontroller","Antal utförda kontroller"]
[null,"Modalitet","Kontroll bokad, datum","Bokad av","Vem ska göra kontrollen?",null,"Kontroll utförd, datum","Utförd av","Kommentar",null,27,27,27]
["Ryhov",null,"åååå-mm-dd",null,null,"Ryhov"]
["Biplan J1","G-båge","2022-10-19","AP","Opc, Jonel Miklja Strålskyddsombud ",{"$f":"A4","v":"Biplan J1"},"2022-10-19","AP/EH","TF avvek mycket, dosrat högre - vänta på svar från leverantör"]
["Biplan J2","G-båge","2022-10-19.","AP","Opc, Jonel Miklja Strålskyddsombud ",{"$f":"A5","v":"Biplan J2"},"2022-10-19","AP/EH","Godkänd"]
[]
["Dagkir","C-båge","2022-06-22","AP","Opc, Jonel Miklja Strålskyddsombud ",{"$f":"A7","v":"Dagkir"},"2022-06-22","AP","Godkänd"]
["ESWT","Ziehm C-båge","2022-12-19","AP","Opc, Jonel Miklja Strålskyddsombud ","ESWT","2022-12-19","AP","Godkänd"]
["Kir A","C-båge","2022-08-03.","AP","Opc, Jonel Miklja Strålskyddsombud ","Kir A","2022-08-03","AP","Godkänd"]
["Kir B","C-båge","2022-06-22.","AP","Opc, Jonel Miklja Strålskyddsombud ","Kir B","2022-06-22","AP","Godkänd"]
["Kir C","C-båge","2022-08-03","AP","Opc, Jonel Miklja Strålskyddsombud ","Kir C","2022-08-03","AP","Godkänd (behöver ev justera kV något)"]
["Ort 1","C-båge","2022-08-03,","AP","Opc, Jonel Miklja Strålskyddsombud ","Ort 1","2022-08-03","AP","Godkänd"]
["Ort 2","C-båge","2022-05-19","AP/TV","Opc, Jonel Miklja Strålskyddsombud ","Ort 2","2022-05-19","AP/TV","Godkänd, ändrat lite i protokoll."]
[]
["KBC 1","C-båge","2022-01-28","AP","Endoskopienheten, Therese Barje",{"$f":"A15","v":"KBC 1"},{"$f":"C15","v":"2022-01-28"},"AP","Godkänd"]
["Pace","C-båge","2022-09-30","AP","Op sal vid endoskopienheten",{"$f":"A16","v":"Pace"},"2022-09-20","AP","Godkänd"]
[]
["Mini c-båge","Mini c-båge","2022-12-29","AP","Akutmottagningen, fråga vid ortopedstationen",{"$f":"A18","v":"Mini c-båge"},"2022-12-29","AP","Godkänd med anmärkning"]
[]
["Värnamo",null,null,null,null,"Värnamo"]
["Biplan V","G-båge","2022-12-05","AP","Opc, Kristina Svensson strålskyddsombud",{"$f":"A21","v":"Biplan V"},"2022-12-05","AP/EH","Godkänd"]
[]
["Op 5","C-båge","2022-12-05.","AP","Opc, Kristina Svensson strålskyddsombud",{"$f":"A23","v":"Op 5"},"2022-12-05","AP/EH","Godkänd, något låg kV"]
[" Op 6","C-båge","2022-06-21.","AP","Opc, Kristina Svensson strålskyddsombud",{"$f":"A24","v":" Op 6"},"2022-06-21","AP","Godkänd"]
["Op 7","C-båge","2022-06-21","AP","Opc, Kristina Svensson strålskyddsombud",{"$f":"A25","v":"Op 7"},"2022-06-21","AP","Godkänd"]
["Op 8","C-båge","2022-06-21,","AP","Opc, Kristina Svensson strålskyddsombud",{"$f":"A26","v":"Op 8"},"2022-06-21","AP","Godkänd"]
[]
["Mini c-båge","Mini c-båge","2022-05-24","AP","Akutmottagningen, Karin Heijel eller Anne Rydén",{"$f":"A28","v":"Mini c-båge"},"2022-05-24","AP","Godkänd"]
[]
["ESVL","Stortz fast utr","2022-08-19","AP","Opc, Josefin Bergman eller Anna Sevefelt Elg. Används tisdag och torsdag. ",{"$f":"A30","v":"ESVL"},"2022-08-19","AP/TV","Godkänd. Behöver optimera protokoll samt använda filter. "]
[]
["Höglandet",null,null,null,null,"Höglandet"]
["Biplan E","G-båge","2022-11-28.","EH/AP","Opc, tel 31100 kordinator",{"$f":"A33","v":"Biplan E"},"2022-11-28","AP/EH","Godkänd, TF skiljer från förra året troligtvis pga bytt kåpa"]
[]
["US 2","C-båge","2022-09-08","EH","Endoskopienheten, kontakt Thomas Nilsson, fre 8 -12",{"$f":"A35","v":"US 2"},"2022-09-08","EH","Godkänd"]
["US 4","C-båge","2022-09-08,","EH","Endoskopienheten, kontakt Thomas Nilsson, fre 8 -12",{"$f":"A36","v":"US 4"},"2022-09-08","EH","Godkänd"]
[]
["Op 6","C-båge","2022-07-05","EH","Opc, tel 31100 kordinator",{"$f":"A38","v":"Op 6"},"2022-07-05","EH","Godkänd"]
["Op 7","C-båge","2022-07-05.","EH","Opc, tel 31100 kordinator",{"$f":"A39","v":"Op 7"},"2022-07-05","EH","Godkänd, dock fick jag ej rätt på en mätpunkt /ebba"]
["Op 8","C-båge","2022-07-12","EH","Opc, tel 31100 kordinator",{"$f":"A40","v":"Op 8"},"2022-07-12","EH","Godkänd, dock fick jag ej rätt på en mätpunkt /ebba"]
[]
["Mini c-båge","Mini c-båge","2022-11-28","EH","Akutmottagningen, kontakt Susanne Ryden, Ortoped Daniel Wärnsberg. ",{"$f":"A42","v":"Mini c-båge"},"2022-11-28","AP/EH","Behöver kompletteras"]
[]
["Smärtenheten","C-båge","2022-09-28","EH","Smärtenheten, kontakt Anna Wallén","C-båge","2022-09-28","EH","Godkänd, dock fick jag ej rätt på en mätpunkt /ebba"]

{"sheet":"SSM plan 2021 (ny version)","index":8,"n_rows":62,"n_cols":8,"rows_kept":62,"cut":false,"hidden":false,"merged":[]}
[]
[null,"Modalitet","Kontroll bokad, datum","Bokad av",null,"Kontroll utförd, datum","Utförd av"]
["Ryhov",null,null,null,"Ryhov"]
["Labb 1","Hybridsal","Leverans 2021-12-28",null,"Labb 1","Leverans 2021-12-28"]
[]
["Labb 2","Konv. rtg","2021-09-01",null,"Labb 2","2021-09-01"]
["Labb 3","Konv. Rtg","Leverans 2021-05-10",null,"Labb 3","Leverans 2021-05-10"]
["Labb 4","Konv. Rtg","Leverans 2021-04-08",null,"Labb 4","Leverans 2021-04-08"]
["Atollen","Konv. Rtg","Leverans 2021-03-04",null,"Atollen","Leverans 2021-03-04"]
[]
["Labb 5","Multilabb","2021-10-18",null,"Labb 5","2021-10-18"]
[]
["Movix NIVA","Mobil rtg","2021-12-15",null,"Movix NIVA","2021-12-15"]
["Movix IVA","Mobil rtg","2021-12-15",null,"Movix IVA","2021-12-15"]
["SOFT Ryhov","Mobil rtg","2021-12-08",null,"SOFT Ryhov","2021-12-08"]
[]
["Labb 11","CT","Leverans 2021-03-11",null,"Labb 11","Leverans 2021-03-11"]
["Labb 12","CT","Leverans 2020-10-21",null,"Labb 12","Leverans 2020-10-21"]
["Labb13","CT","Leverans 2021-06-17",null,"Labb13","Leverans 2021-06-17"]
[]
["Labb 15","Intervention","2021-11-08",null,"Labb 15","2021-11-08","TV","Delkontroll. Kom inte åt service mode"]
["Labb 16","Intervention","Ej gjord",null,"Labb 16","Ej gjord"]
["Labb 17","Intervention","2021-06-22",null,"Labb 17","2021-06-22"]
[]
["Labb 63","Mammografi","2021-05-21",null,"Labb 63","2021-05-21"]
["Labb 64","Mammografi","2021-11-11",null,"Labb 64","2021-11-11"]
["Labb 65","Mammografi","2021-04-23",null,"Labb 65","2021-04-23"]
["Labb 67","Mammografi","2021-05-28",null,"Labb 67","2021-05-28"]
[]
["Värnamo",null,null,null,"Värnamo"]
["Labb 4","Konv. Rtg","Leverans 2021-02-11",null,"Labb 4","Leverans 2021-02-11"]
["Labb 5","Konv. Rtg","Leverans 2021-04-15",null,"Labb 5","Leverans 2021-04-15"]
[]
["Labb 8","Multilabb","2021-10-21",null,"Labb 8","2021-10-21"]
[]
["Movix VMO","Mobil rtg","2021-07-08",null,"Movix VMO","2021-07-08"]
["SOFT VMO","Mobil rtg","2021-07-08",null,"SOFT VMO","2021-07-08"]
[]
["Labb 11","CT","2021-07-12",null,"Labb 11","2021-07-12"]
["Labb12","CT","2021-07-13",null,"Labb12","2021-07-13"]
[]
["ECRP?","OP?",null,null,"ECRP?"]
[]
["Labb 10","Mammografi","2021-07-09",null,"Labb 10","2021-07-09"]
["Höglandet",null,null,null,"Höglandet"]
["Labb 1","Konv. Rtg","2021-03-23",null,"Labb 1","2021-03-23"]
["Labb 6","Konv. Rtg","Leverans 2020-12-17",null,"Labb 6","Leverans 2020-12-17"]
["Labb 31 (vetlanda)","Konv. Rtg","2021-08-12",null,"Labb 31 (vetlanda)","2021-08-12"]
["Labb 41 (tranås)","Konv. Rtg","2021-07-06",null,"Labb 41 (tranås)","2021-07-06"]
["Labb 42 (tranås)","Konv. Rtg","2021-07-06",null,"Labb 42 (tranås)","2021-07-06"]
[]
["Labb 2","GML labb","2021-05-18",null,"Labb 2","2021-05-18"]
["Labb 3","Multilabb","2021-06-02",null,"Labb 3","2021-06-02"]
[]
["Movix 1","Mobil rtg","2021-06-15",null,"Movix 1","2021-06-15"]
["Movix 2","Mobil rtg","2021-06-15",null,"Movix 2","2021-06-15"]
["SOFT EKS","Mobil rtg","Leverans 2020-12-08",null,"SOFT EKS","Leverans 2020-12-08"]
[]
["Labb 4","CT","2021-02-26",null,"Labb 4","2021-02-26"]
["Labb 5","CT","2021-09-29",null,"Labb 5","2021-09-29"]
[]
["Mammo vagn","Mammografi","2021-08-13",null,"Mammo vagn","2021-08-13"]

{"sheet":"SSM Plan 2021","index":9,"n_rows":36,"n_cols":20,"rows_kept":36,"cut":false,"hidden":false,"merged":[[0,0,0,13],[1,3,1,5],[1,7,1,11],[2,3,2,5],[9,15,9,18]]}
["SSM kontroller och leveranskontroller 2021"]
["SSM kontroll Ryhov",null,null,"SSM kontroll Höglandet"]
["SSM kontroll Värnamo",null,null,"Utförda SSM-kontroller"]
["Vecka→","1-4","5-8","9-13","13-17","17-22","22-26","26-30","30-35","35-39","39-43","44-48","48-52","←Vecka"]
["Datum","Januari ","Februari","Mars","April ","Maj","Juni ","Juli ","Augusti","September","Oktober","November","December","Datum"]
[1,"Nyårsdagen",null,null,null,"Första maj",null,null,"Sö","Labb 2 Ryhov  /TV",null,null,null,1]
[{"$f":"A6+1","v":2},"Lö",null,null,"Långfredag","Sö","Lab 3 Eksjö, EH",null,"Labb 15 Ryhov  /TV",null,"Lö",null,null,{"$f":"N6+1","v":2}]
[{"$f":"A7+1","v":3},"Sö",null,null,"Lö",null,null,"Lö",null,null,"Sö",null,null,{"$f":"N7+1","v":3}]
[4,null,null,null,"Sö",null,null,"Sö",null,"Lö",null,null,"Lö",4,null,"Senast uppdaterad:",null,null,null,"Sign"]
[5,null,null,null,"Annandag påsk",null,"Lö",null,null,"Sö",null,null,"Sö",5,null,"2022-01-07",null,null,null,"EH"]
[6,"Trettondagen","Lö","Lö",null,null,"Sveriges naionaldag","LAB 41, Tranås",null,null,null,"Lö",null,6]
[7,null,"Sö","Sö",null,null,null,null,"Lö",null,null,"Sö",null,7]
[8,null,null,null,null,"Lö",null,"Movix och Soft Värnamo","Sö",null,null,null,null,8,null,"Kvar att planera: "]
[9,"Lö",null,null,null,"Sö",null,"Labb 10 Värnamo Mammografi",null,null,"Lö",null,null,9,null,"Ombyggantion+Nyinstallation under 2021 (krävs ingen SSM-kontroll)"]
[10,"Sö",null,null,"Lö",null,null,"Lö",null,null,"Sö",null,null,10,null,"Ryh: ","Labb 4, Labb 3, Atollen"]
[11,null,null,"Labb 4 Värnamo, leverans. /AP, TT, EH","Sö",null,null,"Sö",null,"Lö",null,null,"Lö",11]
[12,null,null,null,null,null,"Lö","Labb 11 Värnamo /AP TT","Lab 31 Vetlanda","Sö",null,null,"Sö",12,null,"Eksjö:"]
[13,null,"Lö","Lö",null,"Kristi Himmelfärdsdag","Sö","Labb 12 Värnamo /AP TT","Mammovagn Vetlanda/PG/AP",null,null,"Lö",null,13]
[14,null,"Sö","Sö",null,null,null,null,"Lö",null,null,"Sö",null,14,null,"Värnamo:",null,"Labb 4, Labb 5"]
[15,null,null,null,"Labb 5 Värnamo, leverans. / EH, AP","Lö","MOVIX, Eksjö",null,"Sö",null,null,null,null,15]
[{"$f":"A20+1","v":16},"Lö",null,null,null,"Sö",null,null,null,null,"Lö",null,null,16,null,"Ej kontrolleras 2020. Behöver boka om kontroller 2021"]
[17,"Sö",null,null,"Lö",null,null,"Lö",null,null,"Sö",null,null,17,null,"Eksjö",null,"Labb 1 , 2 och 3 blir kvar till 2022. Kan inte göra kontroll på lab 1  i år (2020) p g a installation nya lab 6. Övrigt ok."]
[{"$f":"A22+1","v":18},null,null,null,"Sö","Lab 2 Eksjö, EH",null,"Sö",null,"Lö","Labb 5 Ryh /EH TT",null,"Lö",{"$f":"N22+1","v":18},null,null,null,"CT 4 Eksjö flyttat fram till 26/2-2021/ TV"]
[19,null,null,null,null,null,"Lö",null,null,"Sö",null,null,"Sö",19,null,null,null,"2 st movixar behöver boka om 2021/TV"]
[20,null,"Lö","Lö",null,null,"Sö",null,null,null,null,"Lö",null,20]
[21,null,"Sö","Sö",null,"Labb 63 Mammo",null,null,"Lö",null,"Labb 8 Värnamo /AP EH","Sö",null,21,null,"Tranås",null,"labb 41 Philips behöver boka om 2021"]
[22,null,null,null,null,"Lö","Labb 17 Ryhov  /TT AP",null,"Sö",null,null,null,null,22,null,"Ryhov",null," Movix IVA och NIVA behöver boka om 2021"]
[23,"Lö",null,"Lab 1 Eksjö EH","Labb 65 Mammo","Sö",null,null,null,null,"Lö",null,null,23,null,"Ej kontrolleras 2021. Behöver boka om kontroller 2022"]
[24,"Sö",null,null,"Lö",null,null,"Lö",null,null,"Sö",null,"Julafton",24,null,"Ryhov",null,"Labb 16"]
[25,null,null,null,"Sö",null,"Midsommarafton","Sö",null,"Lö",null,null,"Juldagen",25]
[26,null,"CT labb 4 Eksjö TV/EH",null,null,null,"Lö",null,null,"Sö",null,null,"Annandag jul",26]
[27,null,"Lö","Lö",null,null,"Sö",null,"CT 12 Ryhov  /TV",null,null,"Lö",null,27,null,"Vetlanda öppet måndag, onsdag och fredag"]
[28,null,"Lö","Sö",null,"Labb 67 Mammo",null,null,"Lö",null,null,"Sö","Hybridsal1 Lev. kontroll Ryhov  /AP/TV",28,null,"Tranås öppet tisdagar och torsdagar"]
[29,null,null,null,null,"Lö",null,null,"Sö","Labb 5,CT Eksjö EH",null,null,null,29]
[30,"Lö",null,null,"Labb 64 Mammo","Sö",null,null,null,null,"Lö",null,null,30]
[31,"Sö",null,null,null,null,null,"Lö",null,null,"Sö",null,"Nyårsafton",31]

{"sheet":"FU Plan 2020","index":10,"n_rows":36,"n_cols":20,"rows_kept":36,"cut":false,"hidden":false,"merged":[[9,15,9,18],[1,3,1,5],[2,3,2,5],[1,7,1,11],[0,0,0,13]]}
["SSM kontroller och leveranskontroller 2020"]
["SSM kontroll Ryhov",null,null,"SSM kontroll Höglandet",null,null,null,"FU"]
["SSM kontroll Värnamo",null,null,"Utförda SSM-kontroller"]
["Vecka→","1-5","5-9","9-13","14-18","18-22","22-26","27-31","31-35","35-40","40-44","44-48","48-52","←Vecka"]
["Datum","Januari ","Februari","Mars","April ","Maj","Juni ","Juli ","Augusti","September","Oktober","November","December","Datum"]
[1,"Nyårsdagen","Lö","Sö",null,"Första maj",null,null,"Lö",null,null,"Sö",null,1]
[{"$f":"A6+1","v":2},null,"Sö",null,null,"Lö","Lab 2 Ryhov\nPS & TT","Leveranskontroll SFT Värnamo\nTT","Sö",null,null,"FU lab 31 Vet 2-3/11",null,{"$f":"N6+1","v":2}]
[{"$f":"A7+1","v":3},null,null,null,null,"Sö",null,null,null,null,"Lö","FU lab 42 Tra 3-4/11","MG Labb 67 & 65 Ryhov / PG & EH",{"$f":"N7+1","v":3}]
[4,"Lö",null,null,"Lö",null,null,"Lö",null,null,"Sö",null,"MG Labb 67 & 65 Ryhov till kl 12 / PG & EH ",4,null,"Senast uppdaterad:",null,null,null,"Sign"]
[5,"Sö",null,null,"Sö",null,null,"Sö",null,"Lö",null,null,"Lö",5,null,"2020-12-30",null,null,null,"TV"]
[6,null,null,null,null,null,"Sveriges naionaldag",null,null,"Sö",null,"Lab 16 Ryhov/TT","Sö",6]
[7,null,null,"Lö",null,null,"Sö",null,null,null,null,"Lö",null,7,null,"Kvar att planera: "]
[8,null,"Lö","Sö",null,null,null,null,"Lö",null,null,"Sö","Leverans SOFT Eksjö EH",8]
[9,null,"Sö",null,null,"Lö",null,"Lab 3 Ryhov/TV","Sö",null,null,null,null,9,null,"Ombyggantion+Nyinstallation under 2020-VT2021 krävs ej SSM-kontroll under 2020 på gamla-befintliga"]
[10,null,null,null,null,"Sö",null,null,null,null,"Lö",null,"MG Labb 64 Ryhov från kl 12/ TV & TT",10,null,"Ryh: ","CT : 11, 12, 13"]
[11,"Lö",null,"FU Movix Eksjö 10-12/3","Lö",null,null,"Lö",null,null,"Sö","FU lab 3 Eksjö 11-13/11","MG Labb 63 Ryhov till kl 12/ TT och TV",11,null,null,"XA: 5, 14, 17"]
[12,"Sö",null,null,"Sö",null,null,"Sö",null,"Lö",null,null,"Lö",12,null,null,"MG:","65, 64, 63, 67, vagn (leveranskontroll) - väntar på datum från Theres/PG"]
[13,null,null,null,null,null,"Lö","Lab 4 Värnamo + Värnamo Movix\n TT",null,"Sö",null,null,"Sö",13,null,"Eksjö","Labb 6 skall bort hösten2020. Behöver ingen kontroll"]
[14,null,null,"Lö",null,null,"Sö","Lab 31 Vetlanda/TV\n\nLab 5 Värnamo\nTT",null,null,null,"Lö","Lab 41 och 42 Tranås/TV EH",14,null,"G-bågar:",null,"Ryh, VNM, Eksjö?"]
[15,null,"Lö","Sö",null,null,null,"Lab 10 Värnamo\nTT","Lö",null,null,"Sö",null,15]
[{"$f":"A20+1","v":16},null,"Sö",null,null,"Lö",null,"Lab CT 11 Värnamo\nTT","Sö",null,null,null,null,16,null,"Ej kontrolleras 2020. Behöver boka om kontroller 2021"]
[17,null,null,null,null,"Sö","Leveranskontroll SFT Ryhov\nTT","Lab CT 12 Värnamo\nTT",null,null,"Lö",null,"leverans Lab 6 Eksjö/TV EH",17,null,"Eksjö",null,"Labb 1 , 2 och 3 blir kvar till 2022. Kan inte göra kontroll på lab 1   iår (2020) p g a installation nya lab 6. Övrigt ok."]
[{"$f":"A22+1","v":18},"Lö",null,null,"Lö",null,null,"Lö",null,null,"Sö",null,null,{"$f":"N22+1","v":18},null,null,null,"CT 4 Eksjö flyttat fram till 26/2-2021/ TV"]
[19,"Sö",null,null,"Sö","FU lab 11 Vmo",null,"Sö",null,"Lö",null,null,"Lö",19,null,null,null,"2 st movixar behöver boka om 2021/TV"]
[20,null,null,null,null,null,"Lö",null,null,"Sö",null,null,"Sö",20]
[21,null,null,"Lö",null,null,"Sö",null,null,null,"Ryhov CT 12 HJ, EH, PG","Lö",null,21,null,"Tranås",null,"labb 41 Philips behöver boka om 2021"]
[22,null,"Lö","Sö",null,null,null,null,"Lö",null,null,"Sö",null,22,null,"Ryhov",null,"Movix IVA och NIVA behöver boka om 2021"]
[23,null,"Sö",null,null,"Lö",null,null,"Sö",null,null,null,null,23]
[24,null,null,null,null,"Sö",null,null,null,null,"Lö",null,"Julafton",24]
[25,"Lö",null,"FU lab 12 Vmo","Lö",null,null,"Lö",null,"Lab 8 Värnamo\nTT/EH","Sö",null,"Juldagen",25]
[26,"Sö",null,null,"Sö",null,"Lab 4 Ryhov/TV","Sö",null,"Lö",null,"Leveranskontroll labb 15\nTT","Annandag jul",26]
[27,null,null,null,null,null,"Lö","PET/CT (HJ)","Leveranskontroll Mammovagn/ TV & PG","Sö",null,null,"Sö",27,null,"Vetlanda öppet måndag, onsdag och fredag"]
[28,null,null,"Lö",null,null,"Sö",null,null,null,null,"Lö",null,28,null,"Tranås öppet tisdagar och torsdagar"]
[29,null,"Lö","Sö",null,null,null,null,"Lö",null,null,"Sö",null,29]
[30,null,null,null,null,"Lö",null,"Lab 2 Eksjö/TV","Sö",null,null,null,"Lab 3 Eksjö/ TV",30]
[31,null,null,null,null,"Sö",null,null,null,null,"Lö",null,null,31]

{"sheet":"SSM Plan 2019","index":11,"n_rows":36,"n_cols":20,"rows_kept":36,"cut":false,"hidden":false,"merged":[[9,15,9,18],[0,0,0,6],[0,7,0,13],[1,3,1,5],[1,10,1,12],[2,3,2,5],[2,10,2,12]]}
["SSM kontroller 2019",null,null,null,null,null,null,"SSM kontroller 2019"]
["SSM kontroll Ryhov",null,null,"SSM kontroll Höglandet",null,null,null,"SSM kontroll Ryhov",null,null,"SSM kontroll Höglandet",null,null,null,"FTV"]
["SSM kontroll Värnamo",null,null,"Utförda SSM-kontroller",null,null,null,"SSM kontroll Värnamo",null,null,"Utförda SSM-kontroller"]
["Vecka→","1-5","5-9","9-13","14-18","18-22","22-26","27-31","31-35","35-40","40-44","44-48","48-52","←Vecka"]
["Datum","Januari ","Februari","Mars","April ","Maj","Juni ","Juli ","Augusti","September","Oktober","November","December","Datum"]
[1,"Nyårsdagen",null,null,null,"Första maj",null,null,"Lab 4 Värnamo\nTT","Sö",null,null,"Sö",1]
[{"$f":"A6+1","v":2},null,"Lö","Lö",null,null,"Sö",null,null,null,null,"Lö, Alla helgonens dag",null,{"$f":"N6+1","v":2}]
[{"$f":"A7+1","v":3},null,"Sö","Sö",null,null,null,null,"Lö",null,null,"Sö"," Värnamo CT 11/ TT & PS",{"$f":"N7+1","v":3}]
[4,null,null,null,null,"Lö","Lab 2 ","Lab 3 \nPG,PS,TT","Sö",null,null,null,null,4,null,"Senast uppdaterad:",null,null,null,"Sign"]
[5,"Lö",null,null,null,"Sö",null,null,null,null,"Lö",null,null,5,null,"2020-01-16",null,null,null,"TT"]
[6,"Sö",null,null,"Lö",null,"Sveriges naionaldag","Lö","CT 11 Ryhov\nTT","Lab 65 Mam PG\n\nLab 8 Värnamo\nPS,TT","Sö",null,null,6]
[7,null,null,null,"Sö",null,null,"Sö",null,"Lö",null,"Lab 1 och 6 Eksjö PS/TT","Lö",7,null,"Kvar att planera: "]
[8,null,null,null,null,null,"Lö",null,null,"Sö","Lab 3 PS,TT&PG\n",null,"Sö",8]
[9,null,"Lö","Lö",null,null,"Sö, Pingst","Movix Värnamo\nTT,PG",null,null,null,"Lö",null,9]
[10,null,"Sö","Sö",null,null,null,null,"Lö",null,null,"Sö",null,10]
[11,null,null,null,null,"Lö",null,null,"Sö",null,null,"Lab 16\nTT/PG",null,11]
[12,"Lö",null,null,null,"Sö",null," Värnamo CT 12. TV/PG",null,null,"Lö",null,null,12,null,"CT lab 5 Eksjö",null,null,"Kontrollerad 10/1-2020 av PS & TT"]
[13,"Sö",null,null,"Lö",null,null,"Lö",null,"Lab 67 Mam PG","Sö",null,null,13]
[14,null,null,null,"Sö",null,"Atollen\nPS, TT","Sö",null,"Lö",null,null,"Lö",14]
[15,null,null,null,null,null,"Lö",null,null,"Sö","Eksjö CT 4/TT/PG",null,"Sö",15]
[{"$f":"A20+1","v":16},null,"Lö","Lö",null,"Lab 2 Eksjö PS","Sö",null,null,null,"Eksjö Movixar 2 st PG/TT","Lö",null,16]
[17,null,"Sö","Sö",null,null,null,null,"Lö",null,null,"Sö",null,17]
[{"$f":"A22+1","v":18},null,null,null,"Lab 63 Mam TT & PG","Lö",null,null,"Sö",null,null,null,"IVA/NIVA Movixar\nTT & PS",{"$f":"N22+1","v":18}]
[19,"Lö",null,null,"Långfredag","Sö",null,null,null,null,"Lö",null,null,19]
[20,"Sö",null,null,"Lö",null,null,"Lö",null,null,"Sö",null,null,20]
[21,null,null,null,"Sö, Påsk",null,null,"Sö",null,"Lö","Mammovagn Vetlanda TT & PG",null,"Lö",21]
[22,null,"Lab 65 Mam TV & PG",null,"Annandag påsk",null,"Lö, Midsommar",null,null,"Sö",null,null,"Sö",22]
[23,null,"Lö","Lö",null,null,"Sö",null,null,null,null,"Lö","Lab 14 Philips PS",23]
[24,null,"Sö","Sö",null,"Lab 5 em /PS, TT & PG",null,null,"Lö",null,null,"Sö","Julafton",24]
[25,null,null,null,"Lab 14 CBCT","Lö",null,null,"Sö","Lab 17\nTT/PG",null,"Lab 41/42 Tranås PS/TT","Juldagen",25]
[26,"Lö",null,null,null,"Sö",null,null,"Lab 10 Mammo Vmo\nPG &TT","CT 12 Ryhov\nTT/PG","Lö",null,"Annandag jul",26]
[27,"Sö",null,null,"Lö",null,"Lab 31 Vetlanda PS","Lö",null,null,"Sö",null,null,27,null,"Vetlanda öppet måndag, onsdag och fredag"]
[28,null,null,"Lab 64 Mam TT & PG","Sö",null,"Lab 4 PS","Sö",null,"Lö",null,null,"Lö",28,null,"Tranås öppet tisdagar och torsdagar"]
[29,"Lab 10 Mam Värnamo PS & PG",null,null,null,"Lab 67 Mam TT & PG","Lö",null,null,"Sö",null,null,"Sö",29]
[30,null,null,"Lö",null,"Kristi Himmelsfärds-dag","Sö",null,null,"Lab 5 Värnamo PS"," Värnamo CT 12 TT ","Lö",null,30]
[31,null,null,"Sö",null,null,null,null,"Lö",null,"CT 13 Ryhov\nPG, PS, TT",null,null,31]

{"sheet":"SSM Plan 2018","index":12,"n_rows":36,"n_cols":20,"rows_kept":36,"cut":false,"hidden":false,"merged":[[9,15,9,18],[0,0,0,6],[0,7,0,13],[1,3,1,5],[1,10,1,12],[2,3,2,5],[2,10,2,12]]}
["SSM kontroller 2018",null,null,null,null,null,null,"SSM kontroller 2018"]
["SSM kontroll Ryhov",null,null,"SSM kontroll Höglandet",null,null,null,"SSM kontroll Ryhov",null,null,"SSM kontroll Höglandet",null,null,null,"FTV"]
["SSM kontroll Värnamo",null,null,"Utförda SSM-kontroller",null,null,null,"SSM kontroll Värnamo",null,null,"Utförda SSM-kontroller"]
["Vecka→","1-5","5-9","9-13","14-18","18-22","22-26","27-31","31-35","35-40","40-44","44-48","48-52","←Vecka"]
["Datum","Januari ","Februari","Mars","April ","Maj","Juni ","Juli ","Augusti","September","Oktober","November","December","Datum"]
[1,null,null,null,null,null,null,null,"Lab 5 CT Eksjö TV",null,null,null,null,1]
[{"$f":"A6+1","v":2},null,null,null,null,null,null,null,"Lab 4 CT Eksjö TV",null,null,null,null,{"$f":"N6+1","v":2}]
[{"$f":"A7+1","v":3},null,null,null,null,null,null,null,null,null,"Movix trådlös Eksjö",null,null,{"$f":"N7+1","v":3}]
[4,null,null,null,null,null,null,null,null,null,"Lab 3 Eksjö",null,"Movix IVA PS",4,null,"Senast uppdaterad:",null,null,null,"Sign"]
[5,null,null,null,null,null,null,null,null,"Lab 16 fm, Lab 17 em\nTV",null,null,"Movix NIVA PS",5,null,"2018-10-16",null,null,null,"PS"]
[6,null,null,null,null,null,null,null,null,null,null,null,null,6]
[7,null,null,null,null,null,"Lab 2 TV",null,null,null,null,null,null,7,null,"Kvar att planera: "]
[8,null,null,null,null,null,null,null,"Inställt: Lab 10 Mammo Vmo\nTT",null,null,null,null,8]
[9,null,null,null,null,null,null,null,"Inställt: Lab 11 CT\nTT",null,"Lab 5 Inställt Vmo\nTT",null,null,9,null,"Mammografi"]
[10,"Movix reserv Eksjö Peter",null,null,null,null,null,null,null,null,null,null,null,10,null,"Lab 63-67 Ryhov. Lab 10 VNM"]
[11,null,null,null,null,null,null,null,null,null,null,null,null,11,null,"Intervention"]
[12,null,null,null,null,null,null,"Mammovagnen/TV",null,"Inställt: Lab 8 Vmo\nTT",null,null,null,12,null,"Lab 16 och 17 genomförs på samma dag 5/9. Tider för FU återstår"]
[13,null,null,null,null,null,null,null,null,null,null,null,null,13]
[14,null,null,null,null,null,null,null,"Inställt: Lab 63 MG\nTT",null,null,"Lab 1 Eksjö",null,14,null,"Konventionell:"]
[15,null,null,null,null,null,null,null,"Inställt: Lab 64 MG\nTT",null,null,null,null,15,null,"Labb 14 Ryh. Movix VNM. Lab 31 Vetlanda, lab 42 tranås"]
[16,null,null,null,null,"Lab 2 Eksjö",null,null,"Inställt: Lab 65 MG\nTT",null,null,null,null,16,null,"CT"]
[17,null,null,null,null,null,null,null,"Inställt: Lab 67 MG\nTT",null,"Lab 6 Eksjö",null,null,17,null,"Labb 11,12 VNM. Labb 11,13 Ryh."]
[{"$f":"A22+1","v":18},null,null,null,null,null,null,"Lab 3 TV",null,null,null,null,null,{"$f":"N22+1","v":18}]
[19,null,null,null,null,null,null,null,null,null,null,null,null,19]
[20,null,null,null,null,null,"Inställt: Movix Vmo\nTT","Lab 12 CT/TV\n","Inställt: Ev forts. lab 67 MG\nTT",null,null,null,null,20]
[21,null,null,null,null,null,"Inställt?Lab 31 Vetlanda",null,null,null,null,"Lab 11 inställt CT Vmo\nTT",null,21]
[22,null,null,"Lab 5\nTV",null,null,null,null,null,null,null,null,null,22,null,"Övrigt:"]
[23,null,null,null,null,"Lab 4 Ryhov",null,null,null,null,null,null,null,23,null,"FU-tiderna för respektive lab är inlagda som kommentarer i respektive cell"]
[24,null,null,null,null,null,null,null,null,null,"Lab 4 Inställt Vmo\nTT",null,null,24]
[25,null,null,null,null,null,null,"Inställt: Lab 14\nTT",null,"Inställt: Lab 42 Tranås ",null,null,null,25]
[26,null,null,null,null,null,null,"Inställt: Lab 13 CT\nTT",null,null,null,null,null,26]
[27,null,null,"Lab 41 Tranås",null,null,null,null,null,null,null,null,null,27,null," Fr o m V.34: Vetlanda stängt tisdagar och torsdagar"]
[28,null,null,null,null,null,null,null,null,null,null,null,null,28,null," Fr o m V.34: Tranås öppet tisdagar och torsdagar"]
[29,null,null,null,null,null,null,null,null,null,null,null,null,29]
[30,null,null,null,null,null,null,null,null,null,null,null,null,30]
[31,null,null,null,null,null,null,null,null,null,"Movix trådbunden Eksjö",null,null,31]

{"sheet":"SSM Plan 2017","index":13,"n_rows":36,"n_cols":20,"rows_kept":36,"cut":false,"hidden":false,"merged":[[9,15,9,18],[0,0,0,6],[0,7,0,13],[1,3,1,5],[1,10,1,12],[2,3,2,5],[2,10,2,12]]}
["SSM kontroller 2017",null,null,null,null,null,null,"SSM kontroller 2017"]
["SSM kontroll Ryhov",null,null,"SSM kontroll Höglandet",null,null,null,"SSM kontroll Ryhov",null,null,"SSM kontroll Höglandet",null,null,null,"FTV"]
["SSM kontroll Värnamo",null,null,"Utförda SSM-kontroller",null,null,null,"SSM kontroll Värnamo",null,null,"Utförda SSM-kontroller"]
["Vecka→","1-5","5-9","9-13","14-18","18-22","22-26","27-31","31-35","35-40","40-44","44-48","48-52","←Vecka"]
["Datum","Januari ","Februari","Mars","April ","Maj","Juni ","Juli ","Augusti","September","Oktober","November","December","Datum"]
[1,null,null,null,null,null,null,null,null,null,null,null,null,1]
[{"$f":"A6+1","v":2},null,null,null,null,null,null,null,"FTV Intraoral rtg\nSmålands-\nstenar\n",null,null,null,null,{"$f":"N6+1","v":2}]
[{"$f":"A7+1","v":3},null,null,null,null,null,null,null,null,null,null,null,null,{"$f":"N7+1","v":3}]
[4,null,null,null,null,null,null,null,"CBCT Accu Rosenlund ",null,null,null,null,4,null,"Senast uppdaterad:",null,null,null,"Sign"]
[5,null,null,null,null,null,null,"Mammovagnen Peter\n",null,null,"Lab 3 Eksjö Tanny",null,"Movix IVA Peter",5,null,"2017-12-20",null,null,null,"PS"]
[6,null,null,null,"Lab 3:PS",null,null,null,null,null,"Lab 16 Ryhov Tanny (Leveranskontroll)",null,"Movix NIVA Turkan",6]
[7,null,null,null,null,null,"Lab 2",null,null,null,null,null,null,7,null,"Kvar att planera: "]
[8,null,null,null,null,null,null,null,null,null,null,null,null,8]
[9,null,null,null,null,null,null,null,null,null,null,null,null,9,null,"Konventionellt"]
[10,null,null,null,null,null,null,null,null,null,"Lab 5 Värnamo Türkan",null,null,10,null,"Lab 5 Ryhov. Planeras in februari-mars 2018"]
[11,null,null,null,null,null,null,null,"Lab 11 CT\n(HJ & TT)",null,null,null,null,11]
[12,null,null,null,null,null,null,null,null,null,"Movix trådlös Eksjö \nTürkan &\nLab 6 Eksjö\nTürkan",null,null,12]
[13,null,null,null,null,null,"CBCT Käkkir",null,null,null,null,null,null,13]
[14,null,null,null,null,null,"Panorama Käkkir ","CT onk /Turkan",null,null,null,null,null,14]
[15,null,null,null,null,null,"Panorama Rosenlund ",null,null,"CT lab 4 Eksjö /Turkan",null,null,null,15]
[16,null,null,null,null,"Lab 2 Eksjö Peter",null,null,"Lab 10 Mammo Vmo Turkan",null,null,null,null,16]
[17,null,null,null,null,"Lab 4 Ryhov Peter, CT Lab 4 Eksjö  HJ",null,null,"Lab 65 Mammo Turkan",null,null,null,null,17]
[{"$f":"A22+1","v":18},null,null,null,null,null,null,"CT lab 12 vnm  Turkan","Lab 63, 64 & 67 Mammo Turkan",null,"Lab 1 Eksjö Peter",null,null,{"$f":"N22+1","v":18}]
[19,null,null,null,null,null,null,null,null,null,null,null,null,19]
[20,null,null,null,null,null,null,"CT lab 5 Eksjö /Turkan",null,null,null,null,null,20,null,"Kontroll av hybridsalen skjuts fram tills nästa år"]
[21,null,null,null,null,null,"Movix Värnamo tanny","RyhLab 12 CT Turkan. Lab 17 Tanny",null,null,null,null,"Lab 42 Tranås Peter",21]
[22,null,null,null,null,null,"Lab 31 Vetlanda Peter",null,null,null,null,null,null,22]
[23,null,null,null,null,null,null,null,null,null,null,"Lab 11 CT Värnamo\nTürkan",null,23,null,null,null,null,null," "]
[24,null,null,null,null,null,null,null,null,null,null,null,null,24]
[25,null,null,null,null,null,null,null,null,null,null,null,null,25]
[26,null,null,null,null,null,null,"Panorama\nOI Ortodonti\nRosenlund",null,null,"Lab 4 Värnamo Peter",null,null,26,null,"Övrigt:"]
[27,null,null,null,null,null,null,"Lab 13 CT  Turkan / lab 14 Tanny",null,null,null,null,null,27,null,"Tranås stängt tisdag och torsdagar"]
[28,null,null,null,null,null,null,"Lab 16 Ryhov  Türkan/Tanny",null,null,null,null,null,28,null,"Lab 16 Ryh. Skrotas v.38 och ersätts med nytt Refurbished Artis Zee V.40."]
[29,null,null,null,null,null,null,null,"Lab 8 Värnamo Turkan",null,null,null,null,29]
[30,null,null,"Lab 41 Tranås Peter",null,null,"Lab 7: Peter",null,null,null,null,null,null,30]
[31,null,null,null,null,null,null,null,null,null,null,null,null,31]

{"sheet":"SSM Plan 2016","index":14,"n_rows":37,"n_cols":20,"rows_kept":37,"cut":false,"hidden":false,"merged":[[9,15,9,18],[0,0,0,6],[0,7,0,13],[1,3,1,5],[1,10,1,12],[2,3,2,5],[2,10,2,12]]}
["SSM kontroller 2016",null,null,null,null,null,null,"SSM kontroller 2016"]
["SSM kontroll Ryhov",null,null,"SSM kontroll Höglandet",null,null,null,"SSM kontroll Ryhov",null,null,"SSM kontroll Höglandet",null,null,null,"FTV"]
["SSM kontroll Värnamo",null,null,"Utförda SSM-kontroller",null,null,null,"SSM kontroll Värnamo",null,null,"Utförda SSM-kontroller"]
["Vecka→","1-5","5-9","9-13","14-18","18-22","22-26","27-31","31-35","35-40","40-44","44-48","48-52","←Vecka"]
["Datum","Januari ","Februari","Mars","April ","Maj","Juni ","Juli ","Augusti","September","Oktober","November","December","Datum"]
[1,null,null,null,null,null,null,null,null,null,null,null,null,1]
[{"$f":"A6+1","v":2},null,null,null,null,null," TV:Movix Värnamo",null,null,"Lab 63 Mammo",null,"Movix reserv Eksjö Peter",null,{"$f":"N6+1","v":2}]
[{"$f":"A7+1","v":3},null,null,null,null,null,null,null,"FTV Intraoral rtg\nSmålands-\nstenar\nHJ, JES",null,null,null,null,{"$f":"N7+1","v":3}]
[4,null,null,null,null,null,null,"Labb 16 Ryh Tanny",null,null,null,"Lab 10 Mammo Vmo Peter",null,4,null,"Senast uppdaterad:",null,null,null,"Sign"]
[5,null,null,null,"Lab 67 flyttkontroll: PS",null,null,null,"CBCT Accu Rosenlund HJ,JES",null,null,null,null,5,null,"2017-02-06",null,null,null,"PS"]
[6,null,null,null,null,null,null,null,null,null,"Lab 1 Eksjö Peter",null,null,6]
[7,null,null,null,"Lab 3:PS",null,null,"Lab 14 Philips Eleva  Tanny",null,null,null,null,null,7,null,"Kvar att planera: "]
[8,null,null,null,null,null,null,null,null,null,null,null,null,8]
[9,null,null,null,null,null,null,null,null,null,null,null,null,9]
[10,null,null,null,null,null,"Lab 2  TV",null,null,null,null,null,null,10]
[11,null,null,"CBCT 19\nHJ, JES, August",null,null,null,null,null,null,"Lab 6 Eksjö Peter",null,null,11]
[12,null,null,null,null,null,null,"CT lab 5 Eksjö Tanny","Lab 11 CT\nHJ",null,null,null,null,12,null,"Kontroll av hybridsalen skjuts fram tills nästa år"]
[13,null,null,null,null,"Lab 67 Mammo tomo",null,null,null,null,null,null,null,13]
[14,null,null,null,"vnm CT lab 12 uppgradering",null,null,"Lab 14 ArcoSphere Tanny",null,null,null,null,null,14]
[15,null,null,null,null,null,"Panorama Käkkir HJ,JES",null,null,null,null,null,null,15]
[16,null,null,null,null,null,"Panorama Rosenlund HJ,JES",null,null,null,null,null,null,16]
[17,null,null,null,null,null,"Mammovagnen Tanny\n",null,null,null,null,null,null,17]
[17,null,null,null,null,null,"CBCT Käkkir HJ, JES",null,null,null,null,null,null,17]
[{"$f":"A22+1","v":18},null,null,null,null,"Lab 2 Eksjö Peter",null,null,null,null,null,null,null,{"$f":"N22+1","v":18}]
[19,null,null,null,null,"Lab 4 Tanny",null,null,null,null,"Lab 3 Eksjö Peter",null,"Lab 17",19]
[20,null,null,null,null,null,null,null,null,null,"Lab 5 Värnamo Peter",null,null,20]
[21,null,null,"CT us4 Elsjö (leverans) HJ/PS",null,null,null,null,null,null,null,null,"Movix IVA ",21]
[22,null,null,null,null,null,"Inmätning intraoral, Rosenlund HJ, JES","RyhLab 12 CT Tanny",null,"Movix trådlös Eksjö",null,null,"Movix NIVA",22,null,null,null,null,null," "]
[23,null,null,null,null,null,"Lab 31 Vetlanda Peter",null,null,null,null,null,null,23]
[24,null,null,null,null,null,null,null,"Lab 67 Mammo",null,null,"Lab 11 CT Värnamo HJ",null,24]
[25,null,null,null,null,null,null,null,null,null,"Lab 42 Tranås Peter",null,null,25,null,"Övrigt:"]
[26,null,null,null,null,"Lab 8 Värnamo ",null,null,null,null,null,null,null,26,null,"Tranås stängt tisdag och torsdagar"]
[27,null,null,null,null,null,null,"Panorama\nOI Ortodonti\nRosenlund\nHJ, JES",null,null,null,null,null,27]
[28,null,null,null,null,null,null,"Lab 13 CT HJ",null,null,"Lab 4 Värnamo Peter",null,null,28]
[29,null,null,null,null,null,"Lab 7: Peter",null,"Lab 65 Mammo",null,null,null,null,29]
[30,null,null,null,null,null,"Lab 64 Mammo",null,null,"Lab 18",null,null,null,30]
[31,null,null,"Lab 41 Tranås Peter",null,null,null,null,null,null,null,null,null,31]

{"sheet":"FU Ryhov 2016","index":15,"n_rows":34,"n_cols":8,"rows_kept":34,"cut":false,"hidden":false,"merged":[]}
[]
[]
[null,"Lab nummer","MTA nummer","Leverantör ","Vecka","Datum","Utförs av"]
[null,"Labb 11","MTA191100","Siemens",2,"13/1 8:00 -> 16.00","Siemens"]
[null,"Labb 9","MTA190900","Siemens ",5,"3/2 8:00 -> 16.00","MTA"]
[null,"Labb 8","MTA190800","Siemens ",5,"4/2 8:00 -> 16.00","MTA"]
[null,"Movix","MTA116176","Mediel",5,"1/2 09:00 -> 2/2 12:00","Mediel"]
[null,"Movix","MTA116177","Mediel",5,"2/2 13:00 -> 3/2 16:00","Mediel"]
[null,"Labb 16","MTA191600","Siemens",7,"17/2 10:00 -> 19/2 16:00","Siemens"]
[null,"Labb 13 ","MTA191300","Siemens",10,"8/3 8:00 -> 16:00","Siemens"]
[null,"Labb 12","MTA191200 ","Siemens",11,"15/3 8:00 -> 16:00","Siemens"]
[null,"Labb3","MTA190300 ","Mediel",13,"31/3 -> 1/4","Mediel","Garanti FU"]
[null,"Labb 9","MTA190900","Siemens",14,"6/4 8:00-> 16:00","Siemens"]
[null,"Labb 8","MTA190800","Siemens",14,"7/4 8:00-> 16:00","Siemens"]
[null,"Labb 14","MTA191400","Philips",14,"4/4 10:00 -> 5/4 14:00","Philips"]
[null,"Labb 4","MTA190400","Mediel",19,"9/5 -> 10/5","Mediel"]
[null,"Labb 7","MTA190700","Mediel",19,"11/5 -> 12/5","Mediel"]
[null,"Labb 2","MTA190200","Mediel",22,"2/6 -> 3/6","Mediel","Garanti FU"]
[null,"Labb 9","MTA190900","Siemens",32,"10/8 8:00-> 16:00","Siemens"]
[null,"Labb 8","MTA190800","Siemens",32,"11/8 8:00-> 16:00","Siemens"]
[null,"Labb 11","MTA191100","Siemens",33,"18/8 8:00 -> 16:00","Siemens"]
[null,"Labb 63","MTA112702","Siemens",34,"? Besked ges feb 2016","Siemens"]
[null,"Labb 64","MTA112701","Siemens",34,"? Besked ges feb 2016","Siemens"]
[null,"Labb 65","MTA112700","Siemens",34,"? Besked ges feb 2016","Siemens"]
[null,"Labb 12","MTA191200 ","Siemens",37,"13/9 8:00 -> 16:00","Siemens"]
[null,"Labb 13 ","MTA191300","Siemens",38,"20/9 -> 16:00","Siemens"]
[null,"Labb 3","MTA190300","Mediel",40,"2015-10-05","MTA"]
[null,"Labb 9 ","MTA190900","Siemens",44,"2/11 8:00 ->16:00","Siemens"]
[null,"Labb 8","MTA190800","Siemens",44,"3/11 8:00 -> 16:00","Siemens"]
[null,"Labb 14","MTA191400","Philips",44,"31/10 10:00 -> 1/11 14:00","Philips"]
[null,"Labb 4","MTA190400","Mediel",45,"2015-11-08","MTA"]
[null,"Labb 7","MTA190700","Mediel",46,"2015-11-15","MTA"]
[null,"Labb 18","MTA191800","Mediel",48,"28-30/11 ","MTA"]
[null,"Labb 2","MTA190200","Mediel",50,"2015-12-15","MTA"]

{"sheet":"FU_SSM plan 2014 länsöversikt","index":16,"n_rows":37,"n_cols":21,"rows_kept":37,"cut":false,"hidden":false,"merged":[[15,19,15,22],[3,3,3,5],[3,10,3,12],[0,0,0,6],[0,7,0,14],[1,3,1,5],[1,10,1,12],[2,3,2,5],[2,10,2,12]]}
["SSM kontroller 2014",null,null,null,null,null,null,"SSM kontroller 2014"]
["FU Ryhov MT",null,null,"FU Höglandet MT",null,null,"Sön/helgdag","FU Ryhov MT",null,null,"FU Höglandet MT",null,null,"Sön/helg"]
["FU Ryhov leverantör",null,null,"SSM kontroll Höglandet/Vmo/G-ved",null,null,null,"FU Ryhov leverantör",null,null,"SSM kontroll Höglandet/Vmo/G-ved"]
["SSM kontroll Ryhov",null,null,"Utförda SSM-kontroller",null,null,null,"SSM kontroll Ryhov",null,null,"Utförda SSM-kontroller"]
["Vecka→","1-5","5-9","9-13","14-18","18-22","22-26","27-31","31-35","35-40","40-44","44-48","48-52","←Vecka"]
["Datum","Januari ","Februari","Mars","April ","Maj","Juni ","Juli ","Augusti","September","Oktober","November","December","Datum"]
[1,null,null,null,"-16.00",null,null,null,null,null,"Lab 6 Eksjö Peter",null,"Lab 18",1]
[{"$f":"A7+1","v":2},null,null,null,null,null,"Lab 11 CT Vmo","Lab 14 Suss",null,null,null,null,"Lab 5 Vmo",{"$f":"N7+1","v":2}]
[{"$f":"A8+1","v":3},null,null,"Lev.kontr. Lab 3 del 2","Lab 32 Vetlan Peter",null,null,"Lab 24 Nässjö Suss",null,"Lab 19 CBCT\nHJ/J-ES",null,null,"Lab 4 Vmo",{"$f":"N8+1","v":3}]
[4,null,null,null,null,null,"Lev.kontroll lab 31 Vetlanda Adora Peter",null,null,null,null,null,null,4]
[5,null,null,null,null,null,"Lab 3, 4, 5 Vmo",null,null,null,null,"Lab 4 Vmo Hans",null,5]
[6,null,null,null,null,null,null,null,null,null,null,null,null,6]
[7,null,null,null,null,"Lab 2 Eksjö Peter",null,null,null,null,null,null,null,7]
[8,null,null,null," lab 22 Nässjö Peter",null,null,null,null,"Lab 7 Hans",null,null,null,8]
[9,null,null,null,null,null,"Lab 1 Vmo",null,null,null,null,null,null,9]
[10,null,null,"Lab 18 Peter",null,null,"Lab 11 Vmo ",null,null,null,"Lab 10 hybrid Eksjö Peter",null,null,10,null,"Senast uppdaterad:",null,null,null,"2014-11-05"]
[11,null,null,null,null,null,null,null,"Lab 63 ",null,null,null,null,11]
[12,null,null,null,null,"Lab 13 CT Peter/Tanny 13.00 - ",null,null,null,"Levkontroll lab1 Eksjö",null,null,null,12]
[13,null,null,"Mammovagn Nässjö Peter",null,"Lab 3 Eksjö Peter, Lab 13 Ryhov Tanny 13.00 -","Lab 1 G-ved ",null,"Lab 64 em Suss",null,"Lab 33 8.00-","Lab 42 Tranås Peter",null,13,null,"Planera in tider för: "]
[14,null,"Lab 17 Peter",null,null,null,null,null,"Lab 65",null,null,null,null,14,null,"Movixar "]
[15,null,null,null,null,null,null,null,"Lab 65 fm Suss",null,null,null,"Lab 7 8.00-",15,null,null,null,null,null,null,"   "]
[16,null,null,null,null,null,"Lab 4? 8.00-",null,null,"Lab 12","Lab 7 Eksjö Peter",null,"-16.00",16,null,"SIM Ryhov, ny tid"]
[17,null,null,"Lab 13 8.00-",null,null,"-16.00",null,null,null,"-16.00","Lab 1 Vmo",null,17]
[18,null,null,null,null,null,null,null,null,"Lab 5 ",null,"Lab 11 Vmo ",null,18]
[19,null,null,"-16.00",null,"Lab 1 CT Vmo Suss",null,null,null,null,null,null,null,19]
[20,null,null,null,null,"Leverans lab 2 10.00-",null,null,"Lab 11",null,null,null,null,20]
[21,null,"Lab 1 G-ved",null,null,"-12.00",null,null,"Lab 11 CT Tanny",null,null,null,null,21]
[22,null,null,null,null,null,null,null,null,null,"Lab 5 Vmo Tanny",null,"Lab 4",22]
[23,null,null,null,null,null,null,"Lab 4 Eksjö Tanny",null,null,"Lab 63 em Peter",null,null,23]
[24,null,null,"Lab 12  8.00-",null,null,null,"Lab 5 Eksjö Tanny",null,"Lab 10 mammo Vmo Suss",null,"Lab 5 10.00-",null,24]
[25,null,"Lev.kontr. T3","-16.00","Lab 16 Peter",null,"Lab 6 Vmo Suss",null,null,"Sim Sus",null,"Screening Vmo Suss",null,25,null,null,null,null,null," "]
[26,null,"Lab 3","Lab 11 26-27/3",null,null,"Lab 21 Nässjö Peter",null,null,null,null,"-16.00",null,26]
[27,null,null,"Lab 41 Tranås Peter",null,null,null,null,"Lab 14 8.00-",null,"Lab 14 Philips",null,null,27]
[28,null,null,null,"Vmo: Lab8 Peter",null,null,null,null,null,"Lab 17 Siemens",null,null,28]
[29,null,null,null,"Lab 12 CT Suss",null,null,null,"-16.00",null,null,null,null,29]
[30,null,null,null,null,null,"Lab 4 Peter",null,null,null,null,null,null,30]
[31,null,null,"Lab 14 12.00-",null,null,null,null,null,null,null,null,null,31]

{"sheet":"FU_SSM plan 2013 länsöversikt","index":17,"n_rows":37,"n_cols":16,"rows_kept":37,"cut":false,"hidden":false,"merged":[[30,11,31,11],[0,0,0,6],[0,7,0,14],[1,10,1,12],[2,10,2,12],[3,10,3,12],[1,3,1,5],[2,3,2,5],[3,3,3,5]]}
["SSM kontroller 2013",null,null,null,null,null,null,"SSM kontroller 2013"]
["FU Ryhov MT",null,null,"FU Höglandet MT",null,null,"Sön/helgdag","FU Ryhov MT",null,null,"FU Höglandet MT",null,null,"Sön/helg"]
["FU Ryhov leverantör",null,null,"SSM kontroll Höglandet/Vmo/G-ved",null,null,null,"FU Ryhov leverantör",null,null,"SSM kontroll Höglandet/Vmo/G-ved"]
["SSM kontroll Ryhov",null,null,"Utförda SSM-kontroller",null,null,null,"SSM kontroll Ryhov",null,null,"Utförda SSM-kontroller"]
["Vecka→","1-5","5-9","9-13","14-18","18-22","22-26","27-31","31-35","35-40","40-44","44-48","48-52","←Vecka"]
["Datum","Januari ","Februari","Mars","April ","Maj","Juni ","Juli ","Augusti","September","Oktober","November","December","Datum"]
[1,null,null,null,null,null,null,null,null,null,null,null,null,1,null,"Ej planerade:"]
[{"$f":"A7+1","v":2},null,null,null,"Lab 5 Eksjö",null,null,"Lab1 G-ved Suss",null,null,null,null,null,{"$f":"N7+1","v":2},null,"Lab 3 Ryhov, skrotas våren 2014"]
[{"$f":"A8+1","v":3},null,null,null,"Lab 4 Eksjö","Lab2 Eksjö Peter","Lab 21","Lab 14 Tanny",null,null,null,null,null,{"$f":"N8+1","v":3},null,"Lab 19 Ryhov  Scandora, tisdag em-dagar"]
[4,null,null,null,null,null,"Nässjö",null,null,null,"Lab 10 mammo Vmo Peter","Lab 4 Adora Vmo Suss",null,4]
[5,null,null,"Lab 41",null,null,null,null,"Simulator onk. Ryhov Sus/TV",null,null,null,null,5]
[6,null,null,"Tranås",null,"Lab14, 12.00- ",null,null,null,null,null,null,"Lab 22 Nässjö Peter",6]
[7,"Lab 31",null,null,null,"-16.00",null,null,"Lab10 Vmo Mammo delkontroll TV/Besart",null,null,null,null,7]
[8,"Vetlanda",null,null,"Lab40 8-9/4",null,null,null,null,null,null,null,null,8]
[9,null,null,null,"Lab 1 Vmo Suss, Peter",null,null,null,null,null,null,null,null,9]
[10,null,null,null,null,null,"Lab2, 8.00-","Lab11 Tanny","12-15/8: Lab 63-65 Mammo","Lab 7 Peter",null,null,null,10]
[11,null,"Lab16, 10.00-",null,null,null,null,null,null,null,null,null,"Lab 32",11]
[12,null,null,null,null,null,null,null,null,null,null,null,"Vetlanda",12]
[13,null,"-16.00",null,null,"Lev.kontroll lab 4 Adora Ryhov, Peter","-16.00",null,null,null,null,null,null,13]
[14,null,null,null,null,"Lab3 Eksjö Susanna, Jan-E","Lab2 J-E",null,null,null,"Lab 7 Eksjö14-16/10",null,null,14]
[15,null,null,"Lab12, 8-16",null,null,null,null,null,null,"Lab 5 Eksjö",null,null,15]
[16,"Lab11, 8-16",null,null,"Lab19, 10-17",null,null,null,null,"Mammovagn Nässjö, Peter",null,null,null,16]
[17,null,null,null,null,null,null,null,null,null,"Lab 7 Eksjö Peter",null,"Lab32 Vetlanda Peter",17]
[18,null,null,"Lab13, 8-16",null,null,null,"Lab 63 Tanny",null,null,null,null,null,18]
[19,null,null,"Lab 31 Vetlanda Peter",null,null,"Lab11,  8-16",null,"Lab 64 Suss, Peter","Lab5 Peter",null,null,null,19]
[20,null,null,null,null,null,null,null,null,null,null,"Lab 3 Eksjö",null,20]
[21,null,null,null,null,"Lab5 Vmo Peter, Suss",null,null,null,null,"Lev.kontroll lab 5 Adora Vmo, Alla",null,null,21]
[22,null,null,"Lab16 Peter","Lab 1+2 Eksjö",null,null,null,"Lab 65 Peter",null,"Lab 33 Peter",null,null,22]
[23,null,null,null,null,"Eksjö Lab1 Peter ",null,null,null,null,null,null,null,23]
[24,null,null,null,null,"Eksjö Lab5 Peter, Tanny",null,null,null,"Lab12, 8-16",null,null,null,24]
[25,null,null,null,"Lab13 Suss, Peter",null,"Lab 6 Vmo Peter, Suss",null,null,null,null,"25-27/11: Lab 18 Mediel. Lab 5 Siemens",null,25]
[26,null,null,"Lab 41 Tranås Peter",null,null,null,null,null,"Lab13, 8-16",null,null,null,26]
[27,null,null,null,null,null,null,null,null,"Lev.kontroll Adora Tranås 42 Tanny",null,"Lab18 Peter 14-",null,27]
[28,null,null,null,null,null,"Lab 24, 21 Tanny, Suss, Peter",null,null,null,"Lab14 Philips, lab 17 Siemens","Lab 22 Nässjö",null,28]
[29,null,null,null,"Vmo: Lab8 Peter lab11 CT Suss",null,null,null,"Lab6 Adora Eksjö Peter",null,null,"Lab 10 hybridsal Eksjö.",null,29]
[30,null,null,null,"Lab 12 Suss, Peter",null,null,null,"Lab14 29-30/8",null,"Screening Vmo Suss",null,null,30]
[31,null,null,null,null,"Lab 4 Eksjö Suss, Peter",null,null,null,null," lab 17 Peter",null,null,31]

{"sheet":"FU Höglandet","index":18,"n_rows":13,"n_cols":2,"rows_kept":13,"cut":false,"hidden":false,"merged":[]}
[]
[]
[]
[]
[]
[null,"De enda FU som är planerade hittills är: Lab 2: 17/5 och 18/10"]
[null,"                                                                                Lab 4: 20/4 och 19/10"]
[null,"                                                                                Mammovagn: 16/7 (16/6?)"]
[]
[]
[null,"Återkommer när vi planerat in fler."]
[]
[null,"Mvh Ingvar"]

{"sheet":"SSM Plan 2015","index":19,"n_rows":36,"n_cols":20,"rows_kept":36,"cut":false,"hidden":false,"merged":[[9,15,9,18],[2,3,2,5],[2,10,2,12],[0,0,0,6],[1,3,1,5],[1,10,1,12],[0,7,0,13]]}
["SSM kontroller 2015",null,null,null,null,null,null,"SSM kontroller 2015"]
["SSM kontroll Ryhov",null,null,"SSM kontroll Höglandet/Vmo/G-ved",null,null,null,"SSM kontroll Ryhov",null,null,"SSM kontroll Höglandet/Vmo/G-ved"]
["FU Ryhov",null,null,"Utförda SSM-kontroller",null,null,null,"FU Ryhov",null,null,"Utförda SSM-kontroller"]
["Vecka→","1-5","5-9","9-13","14-18","18-22","22-26","27-31","31-35","35-40","40-44","44-48","48-52","←Vecka"]
["Datum","Januari ","Februari","Mars","April ","Maj","Juni ","Juli ","Augusti","September","Oktober","November","December","Datum"]
[1,null,null,null,null,null,null,null,null,null,"Lab 6 Eksjö PS",null,null,1]
[2,null,null,null,null,null,null,null,null,null,null,null,"-16.00",2]
[3,null,null,null,null,null,"Lab 4 HJ",null,null,"Lab 4 CT Eksjö HJ+PS",null,null,"Lab 4, 8-16",3]
[4,null,null,null,null,null,"Lab 2 Eksjö PS",null,null,null,null,null,"CT 11 Vmo HJ/PS",4,null,"Senast uppdaterad:",null,null,null,"Sign"]
[5,null,null,null,null,"Movix reserv Eksjö PS ",null,null,"Lab 63 mammo FU+SSM kontroll Hans",null,null,"Lab 4 Vmo TV",null,5,null,"2015-12-21",null,null,null,"PS"]
[6,null,null,null,null,null,null,null,"Lab 64 mammo FU+SSM kontroll Hans",null,null,"Lab 10 Vmo mammo PS",null,6]
[7,null,null,null,null,"Lab 32 Vetlanda PS, underkänt =skrotas",null,null,"Lab 65 mammo FU+SSM kontroll Hans",null,"Lab 1 Eksjö PS",null,null,7,null,"Kvar att planera: "]
[8,null,null,null,null,null,null,"Mammovagn Vetlanda TV",null,null,null,null,"Lab 7, 8-16",8]
[9,null,null,null,null,null,null,null,null,null,null,null,"Movix IVA + NIVA. PS+JE",9]
[10,null,null,null,"Lab 3 HJ+TV",null,null,"Lab 14 Arcosfär ryhov TV",null,null,null,null,"Lab 42 Tranås PS",10]
[11,null,null,null,null,null,null,null,null,"Lab 7 PS",null,null,null,11]
[12,null,null,null,null,null,null,null,null,null,null,null,null,12]
[13,null,null,null,"CT 12 Ryhov TV\nCBCT LAB 19 HJ/JES",null,null,null,null,null,null,null,null,13]
[14,null,null,null,null,null,null,"Lab 3 Eksjö TV",null,null,"Lab 7 Eksjö PS",null,null,14]
[15,"Movix Vmo",null,null,null,null,null,null,null,"Lab 12, 8-16",null,null,"Movix trådlös Eksjö + G-båge, JE",15]
[16,null,null,null,null,null,null,"Lab14 Philips Eleva, Ryh. TV",null,null,"Lab 10 hybrid Eksjö TV+PS+(HJ)",null,null,16]
[17,null,null,null,"Lev.kontroll CT5 Ekjsö Toshiba TV",null,null,null,null,"SSM lab 5 JE",null,null,null,17]
[18,null,null,null,null,null,null,null,null,null,null,null,null,18]
[19,null,null,"Lab 17 PS, JE",null,null,null,null,"Lab 11, 8-16",null,null,null,null,19]
[20,null,null,null,null,"Lab 2 PS",null,null,"Lab 11 CT HJ",null,null,null,null,20]
[21,null,null,null,null,null,null,null,null,null,null,null,null,21]
[22,null,null,null,null,null,null,null,null,null,"Lab 5 Vmo PS",null,"Lab 18 Ryhov",22]
[23,null,null,null,null,null,null,null,null,null,null,"Lab 5, 10.00-",null,23]
[24,null,null,null,null,null,"Lab 24 Nässjö mammo PS",null,null,null,null,null,null,24]
[25,null,null,null,null,null,"Lab 6 Vmo TV, Lab 31 Vetlanda PS",null,null,null,null,"-14.00 ",null,25,null,null,null,null,null," "]
[26,null,null,"Lab 41 Tranås Peter",null,null,null,null,"Mediel lab 14, 08.00-",null,"Eleva lab 14, 12.00-",null,null,26]
[27,null,null,null,null,null,null,"Lab 13 CT Tanny",null,null,"-16.00","Lab 18 Vmo mammo PS",null,27]
[28,null,null,null,null,"Lab 8 Vmo HJ+JE",null,null,"-16.00",null,"Lab 17, 26:e 10.00-27:e 14.00",null,null,28]
[29,null,null,null,null,null,null,"Lab 16 Ryhov  TV",null,null,"Lab 3, 8-16",null,null,29]
[30,null,null,null,null,null,null,null,null,null,null,"Lab 18, 8.00-",null,30]
[31,null,null,null,null,null,null,null,null,null,null,null,null,31]

{"sheet":"Övrig info","index":20,"n_rows":4,"n_cols":9,"rows_kept":4,"cut":false,"hidden":false,"merged":[]}
[]
["Tranås och Vetlanda har stängt tisdagar och torsdagar",null,null,null,null,null,null,null,"Nyckel Tranås: Vaktmästare 0140/69686"]
[]
["Nässjö har stängt fredagar på mammo"]